{"text_format":"1","workbook":"xlsx","n_sheets":19,"sheets":["Ricapitolazione","1","2","3","4","5","6","7","8","9","10","11","12","13","14","15","16","17","18"],"not_rendered":{"charts":0,"images":1,"macros":1,"external_links":0,"defined_names":18,"comments":0,"pivot_tables":0},"unopened":[],"bounds":{"document_bytes":16777216,"sheet_cells":100000,"rows_first":2000,"rows_last":500,"rows_between":2000,"halvings":0,"cell_chars":16384,"cell_head_chars":4096},"cells_cut":0,"cells_raw":0,"read":"whole","date_system":"1900"}

{"sheet":"Ricapitolazione","index":0,"n_rows":28,"n_cols":9,"rows_kept":28,"cut":false,"hidden":false,"merged":[[1,7,1,8],[2,7,2,8],[0,3,0,4],[13,0,18,0]]}
[null,null,null,"Dipartimento federale delle finanze DFF\n\nUfficio federale della dogana e della sicurezza dei confini UDSC"]
["Indirizzo :",null,null,null,null,null,null,"Numero di cliente"]
["Nome / Ditta",null,null,"Ricapitolazione annuale"]
["Indirizzo",null,null,"delle bevande distillate  (Contabilità dell'alcol)"]
["Luogo",null,null,null,null,null,null," "]
["N. di telefono",null,null,null,null,null,null,"Esercizio"]
["Osservazioni :",null,null,"Conto degli spiritosi","Entrate totali","Uscite totali","Saldo","Inventario","Differenza"]
[null,null,null,null,"Incluso stock iniziale",null,"contabile",null,"Incluso consumo"]
[null,null,null,"Sorte","Litri 100%","Litri 100%","Litri 100%","Litri 100%","Litri 100%"]
[null,null,1,null,{"$f":"'1'!G1","v":0},{"$f":"'1'!G2","v":0},{"$f":"SUM(E10-F10)","v":0},null,{"$f":"SUM(G10-H10)","v":0}]
[null,null,2,null,{"$f":"'2'!G1","v":0},{"$f":"'2'!G2","v":0},{"$f":"SUM(E11-F11)","v":0},null,{"$f":"SUM(G11-H11)","v":0}]
[null,null,3,null,{"$f":"'3'!G1","v":0},{"$f":"'3'!G2","v":0},{"$f":"SUM(E12-F12)","v":0},null,0]
[null,null,4,null,{"$f":"'4'!G1","v":0},{"$f":"'4'!G2","v":0},0,null,0]
["La persona sottoscritta certifica che le iscrizioni fatte nella presente contabilità sono state effettuate in modo completo e veritiero, sono state controllate e sono risultate corrette.",null,5,null,{"$f":"'5'!G1","v":0},{"$f":"'5'!G2","v":0},0,null,0]
[null,null,6,null,{"$f":"'6'!G1","v":0},{"$f":"'6'!G2","v":0},0,null,0]
[null,null,7,null,{"$f":"'7'!G1","v":0},{"$f":"'7'!G2","v":0},0,null,0]
[null,null,8,null,{"$f":"'8'!G1","v":0},{"$f":"'8'!G2","v":0},0,null,0]
[null,null,9,null,{"$f":"'9'!G1","v":0},{"$f":"'9'!G2","v":0},0,null,0]
[null,null,10,null,{"$f":"'10'!G1","v":0},{"$f":"'10'!G2","v":0},0,null,0]
[null,null,11,null,{"$f":"'11'!G1","v":0},{"$f":"'11'!G2","v":0},0,null,0]
["Data :",null,12,null,{"$f":"'12'!G1","v":0},{"$f":"'12'!G2","v":0},0,null,0]
[null,null,13,null,{"$f":"'13'!G1","v":0},{"$f":"'13'!G2","v":0},0,null,0]
[null,null,14,null,{"$f":"'14'!G1","v":0},{"$f":"'14'!G2","v":0},0,null,0]
["Firma della persona responsabile:",null,15,null,{"$f":"'15'!G1","v":0},{"$f":"'15'!G2","v":0},0,null,0]
[null,null,16,null,{"$f":"'16'!G1","v":0},{"$f":"'16'!G2","v":0},0,null,0]
[null,null,17,null,{"$f":"'17'!G1","v":0},{"$f":"'17'!G2","v":0},0,null,0]
[null,null,18,null,{"$f":"'18'!G1","v":0},{"$f":"'18'!G2","v":0},0,null,0]
[null,null,null,"Totale",{"$f":"SUM(E10:E27)","v":0},{"$f":"SUM(F10:F27)","v":0},{"$f":"SUM(G10:G27)","v":0},{"$f":"SUM(H10:H27)","v":0},{"$f":"SUM(I10:I27)","v":0}]

{"sheet":"1","index":1,"n_rows":125,"n_cols":15,"rows_kept":125,"cut":false,"hidden":false,"merged":[[4,1,5,1],[4,14,5,14],[0,13,0,14],[1,13,1,14]]}
[null,{"$f":"Ricapitolazione!D10","v":0},null,null,"Totale delle entrate",null,{"$f":"SUM(H7:H125)","v":0},"Litri 100%",null,null,null,null,null,"Numero di cliente"]
[null,null,null,null,"Totale delle uscite",null,{"$f":"SUM(N8:N125)","v":0},"Litri 100%",null,null,null,null,null,{"$f":"Ricapitolazione!H3","v":0}]
["Esercizio",{"$f":"Ricapitolazione!I6","v":0},null,null,"Saldo",null,{"$f":"SUM(G1-G2)","v":0},"Litri 100%"]
[]
[null,"In entrata: Produzione / fabbricazione\nIn uscita  : Nome e indirizzo dell'acquirente / utilizzazione\n                   per febbricazione / degustazione / regali",null,null,null,"Entrate",null,null,null,null,null,"Uscite",null,null,"Data della\ndichiarazione per l'imposizione"]
["Data",null,null,"Numero di\nbottiglie","Capacità","litri","% vol.","Litri 100 %",null,"Numero di\nbottiglie","Capacità","Litri","% vol.","Litri 100 %"]
[" ","Stock iniziale / riporto",null,null,null,{"$f":"SUM(D7*E7)","v":0},null,{"$f":"ROUND(F7*G7/100,2)","v":0}]
[null,null,null,null,null,{"$f":"SUM(D8*E8)","v":0},null,{"$f":"ROUND(F8*G8/100,2)","v":0},null,null,null,{"$f":"SUM(J8*K8)","v":0},null,{"$f":"ROUND(L8*M8/100,2)","v":0}]
[null,null,null,null,null,{"$f":"SUM(D9*E9)","v":0},null,{"$f":"ROUND(F9*G9/100,2)","v":0},null,null,null,{"$f":"SUM(J9*K9)","v":0},null,{"$f":"ROUND(L9*M9/100,2)","v":0}]
[null,null,null,null,null,0,null,0,null,null,null,{"$f":"SUM(J10*K10)","v":0},null,0]
[null,null,null,null,null,0,null,0,null,null,null,0,null,0]
[null,null,null,null,null,0,null,0,null,null,null,0,null,0]
[null,null,null,null,null,0,null,0,null,null,null,0,null,0]
[null,null,null,null,null,0,null,0,null,null,null,0,null,0]
[null,null,null,null,null,0,null,0,null,null,null,0,null,0]
[null,null,null,null,null,0,null,0,null,null,null,0,null,0]
[null,null,null,null,null,0,null,0,null,null,null,0,null,0]
[null,null,null,null,null,0,null,0,null,null,null,0,null,0]
[null,null,null,null,null,0,null,0,null,null,null,0,null,0]
[null,null,null,null,null,{"$f":"SUM(D20*E20)","v":0},null,0,null,null,null,0,null,0]
[null,null,null,null,null,0,null,0,null,null,null,0,null,0]
[null,null,null,null,null,0,null,0,null,null,null,0,null,0]
[null,null,null,null,null,0,null,0,null,null,null,0,null,0]
[null,null,null,null,null,0,null,0,null,null,null,0,null,0]
[null,null,null,null,null,0,null,0,null,null,null,0,null,0]
[null,null,null,null,null,0,null,0,null,null,null,0,null,0]
[null,null,null,null,null,0,null,0,null,null,null,0,null,0]
[null,null,null,null,null,0,null,0,null,null,null,0,null,0]
[null,null,null,null,null,0,null,0,null,null,null,0,null,0]
[null,null,null,null,null,0,null,0,null,null,null,0,null,0]
[null,null,null,null,null,0,null,0,null,null,null,0,null,0]
[null,null,null,null,null,0,null,0,null,null,null,0,null,0]
[null,null,null,null,null,0,null,0,null,null,null,0,null,0]
[null,null,null,null,null,0,null,0,null,null,null,0,null,0]
[null,null,null,null,null,0,null,0,null,null,null,0,null,0]
[null,null,null,null,null,0,null,0,null,null,null,0,null,0]
[null,null,null,null,null,0,null,0,null,null,null,0,null,0]
[null,null,null,null,null,0,null,0,null,null,null,0,null,0]
[null,null,null,null,null,0,null,0,null,null,null,0,null,0]
[null,null,null,null,null,0,null,0,null,null,null,0,null,0]
[null,null,null,null,null,0,null,0,null,null,null,0,null,0]
[null,null,null,null,null,0,null,0,null,null,null,0,null,0]
[null,null,null,null,null,0,null,0,null,null,null,0,null,0]
[null,null,null,null,null,0,null,0,null,null,null,0,null,0]
[null,null,null,null,null,0,null,0,null,null,null,0,null,0]
[null,null,null,null,null,0,null,0,null,null,null,0,null,0]
[null,null,null,null,null,0,null,0,null,null,null,0,null,0]
[null,null,null,null,null,0,null,0,null,null,null,0,null,0]
[null,null,null,null,null,0,null,0,null,null,null,0,null,0]
[null,null,null,null,null,0,null,0,null,null,null,0,null,0]
[null,null,null,null,null,0,null,0,null,null,null,0,null,0]
[null,null,null,null,null,0,null,0,null,null,null,0,null,0]
[null,null,null,null,null,0,null,0,null,null,null,0,null,0]
[null,null,null,null,null,0,null,0,null,null,null,0,null,0]
[null,null,null,null,null,0,null,0,null,null,null,0,null,0]
[null,null,null,null,null,0,null,0,null,null,null,0,null,0]
[null,null,null,null,null,0,null,0,null,null,null,0,null,0]
[null,null,null,null,null,0,null,0,null,null,null,0,null,0]
[null,null,null,null,null,0,null,0,null,null,null,0,null,0]
[null,null,null,null,null,0,null,0,null,null,null,0,null,0]
[null,null,null,null,null,0,null,0,null,null,null,0,null,0]
[null,null,null,null,null,0,null,0,null,null,null,0,null,0]
[null,null,null,null,null,0,null,0,null,null,null,0,null,0]
[null,null,null,null,null,0,null,0,null,null,null,0,null,0]
[null,null,null,null,null,0,null,0,null,null,null,0,null,0]
[null,null,null,null,null,0,null,0,null,null,null,0,null,0]
[null,null,null,null,null,0,null,0,null,null,null,0,null,0]
[null,null,null,null,null,0,null,0,null,null,null,0,null,0]
[null,null,null,null,null,0,null,0,null,null,null,0,null,0]
[null,null,null,null,null,0,null,0,null,null,null,0,null,0]
[null,null,null,null,null,0,null,0,null,null,null,0,null,0]
[null,null,null,null,null,0,null,0,null,null,null,0,null,0]
[null,null,null,null,null,{"$f":"SUM(D73*E73)","v":0},null,{"$f":"ROUND(F73*G73/100,2)","v":0},null,null,null,{"$f":"SUM(J73*K73)","v":0},null,{"$f":"ROUND(L73*M73/100,2)","v":0}]
[null,null,null,null,null,0,null,0,null,null,null,0,null,0]
[null,null,null,null,null,0,null,0,null,null,null,0,null,0]
[null,null,null,null,null,0,null,0,null,null,null,0,null,0]
[null,null,null,null,null,0,null,0,null,null,null,0,null,0]
[null,null,null,null,null,0,null,0,null,null,null,0,null,0]
[null,null,null,null,null,0,null,0,null,null,null,0,null,0]
[null,null,null,null,null,0,null,0,null,null,null,0,null,0]
[null,null,null,null,null,0,null,0,null,null,null,0,null,0]
[null,null,null,null,null,0,null,0,null,null,null,0,null,0]
[null,null,null,null,null,0,null,0,null,null,null,0,null,0]
[null,null,null,null,null,0,null,0,null,null,null,0,null,0]
[null,null,null,null,null,0,null,0,null,null,null,0,null,0]
[null,null,null,null,null,0,null,0,null,null,null,0,null,0]
[null,null,null,null,null,0,null,0,null,null,null,0,null,0]
[null,null,null,null,null,0,null,0,null,null,null,0,null,0]
[null,null,null,null,null,0,null,0,null,null,null,0,null,0]
[null,null,null,null,null,0,null,0,null,null,null,0,null,0]
[null,null,null,null,null,0,null,0,null,null,null,0,null,0]
[null,null,null,null,null,0,null,0,null,null,null,0,null,0]
[null,null,null,null,null,0,null,0,null,null,null,0,null,0]
[null,null,null,null,null,0,null,0,null,null,null,0,null,0]
[null,null,null,null,null,0,null,0,null,null,null,0,null,0]
[null,null,null,null,null,0,null,0,null,null,null,0,null,0]
[null,null,null,null,null,0,null,0,null,null,null,0,null,0]
[null,null,null,null,null,0,null,0,null,null,null,0,null,0]
[null,null,null,null,null,0,null,0,null,null,null,0,null,0]
[null,null,null,null,null,0,null,0,null,null,null,0,null,0]
[null,null,null,null,null,0,null,0,null,null,null,0,null,0]
[null,null,null,null,null,0,null,0,null,null,null,0,null,0]
[null,null,null,null,null,0,null,0,null,null,null,0,null,0]
[null,null,null,null,null,0,null,0,null,null,null,0,null,0]
[null,null,null,null,null,0,null,0,null,null,null,0,null,0]
[null,null,null,null,null,0,null,0,null,null,null,0,null,0]
[null,null,null,null,null,0,null,0,null,null,null,0,null,0]
[null,null,null,null,null,0,null,0,null,null,null,0,null,0]
[null,null,null,null,null,0,null,0,null,null,null,0,null,0]
[null,null,null,null,null,0,null,0,null,null,null,0,null,0]
[null,null,null,null,null,0,null,0,null,null,null,0,null,0]
[null,null,null,null,null,0,null,0,null,null,null,0,null,0]
[null,null,null,null,null,0,null,0,null,null,null,0,null,0]
[null,null,null,null,null,0,null,0,null,null,null,0,null,0]
[null,null,null,null,null,0,null,0,null,null,null,0,null,0]
[null,null,null,null,null,0,null,0,null,null,null,0,null,0]
[null,null,null,null,null,0,null,0,null,null,null,0,null,0]
[null,null,null,null,null,0,null,0,null,null,null,0,null,0]
[null,null,null,null,null,0,null,0,null,null,null,0,null,0]
[null,null,null,null,null,0,null,0,null,null,null,0,null,0]
[null,null,null,null,null,0,null,0,null,null,null,0,null,0]
[null,null,null,null,null,0,null,0,null,null,null,0,null,0]
[null,null,null,null,null,0,null,0,null,null,null,0,null,0]
[null,null,null,null,null,0,null,0,null,null,null,0,null,0]
[null,null,null,null,null,0,null,0,null,null,null,{"$f":"SUM(J125*K125)","v":0},null,0]

{"sheet":"2","index":2,"n_rows":125,"n_cols":15,"rows_kept":125,"cut":false,"hidden":false,"merged":[[4,1,5,1],[4,14,5,14],[0,13,0,14],[1,13,1,14]]}
[null,{"$f":"Ricapitolazione!D11","v":0},null,null,"Totale delle entrate",null,{"$f":"SUM(H7:H125)","v":0},"Litri 100%",null,null,null,null,null,"Numero di cliente"]
[null,null,null,null,"Totale delle uscite",null,{"$f":"SUM(N8:N125)","v":0},"Litri 100%",null,null,null,null,null,{"$f":"Ricapitolazione!H3","v":0}]
["Esercizio",{"$f":"Ricapitolazione!I6","v":0},null,null,"Saldo",null,{"$f":"SUM(G1-G2)","v":0},"Litri 100%"]
[]
[null,"In entrata: Produzione / fabbricazione\nIn uscita  : Nome e indirizzo dell'acquirente / utilizzazione\n                   per febbricazione / degustazione / regali",null,null,null,"Entrate",null,null,null,null,null,"Uscite",null,null,"Data della\ndichiarazione per l'imposizione"]
["Data",null,null,"Numero di\nbottiglie","Capacità","litri","% vol.","Litri 100 %",null,"Numero di\nbottiglie","Capacità","Litri","% vol.","Litri 100 %"]
[" ","Stock iniziale / riporto",null,null,null,{"$f":"SUM(D7*E7)","v":0},null,{"$f":"ROUND(F7*G7/100,2)","v":0}]
[null,null,null,null,null,{"$f":"SUM(D8*E8)","v":0},null,{"$f":"ROUND(F8*G8/100,2)","v":0},null,null,null,{"$f":"SUM(J8*K8)","v":0},null,{"$f":"ROUND(L8*M8/100,2)","v":0}]
[null,null,null,null,null,{"$f":"SUM(D9*E9)","v":0},null,{"$f":"ROUND(F9*G9/100,2)","v":0},null,null,null,{"$f":"SUM(J9*K9)","v":0},null,{"$f":"ROUND(L9*M9/100,2)","v":0}]
[null,null,null,null,null,0,null,0,null,null,null,0,null,0]
[null,null,null,null,null,0,null,0,null,null,null,0,null,0]
[null,null,null,null,null,0,null,0,null,null,null,0,null,0]
[null,null,null,null,null,0,null,0,null,null,null,0,null,0]
[null,null,null,null,null,0,null,0,null,null,null,0,null,0]
[null,null,null,null,null,0,null,0,null,null,null,0,null,0]
[null,null,null,null,null,0,null,0,null,null,null,0,null,0]
[null,null,null,null,null,0,null,0,null,null,null,0,null,0]
[null,null,null,null,null,0,null,0,null,null,null,0,null,0]
[null,null,null,null,null,0,null,0,null,null,null,0,null,0]
[null,null,null,null,null,0,null,0,null,null,null,0,null,0]
[null,null,null,null,null,0,null,0,null,null,null,0,null,0]
[null,null,null,null,null,0,null,0,null,null,null,0,null,0]
[null,null,null,null,null,0,null,0,null,null,null,0,null,0]
[null,null,null,null,null,0,null,0,null,null,null,0,null,0]
[null,null,null,null,null,0,null,0,null,null,null,0,null,0]
[null,null,null,null,null,0,null,0,null,null,null,0,null,0]
[null,null,null,null,null,0,null,0,null,null,null,0,null,0]
[null,null,null,null,null,0,null,0,null,null,null,0,null,0]
[null,null,null,null,null,0,null,0,null,null,null,0,null,0]
[null,null,null,null,null,0,null,0,null,null,null,0,null,0]
[null,null,null,null,null,0,null,0,null,null,null,0,null,0]
[null,null,null,null,null,0,null,0,null,null,null,0,null,0]
[null,null,null,null,null,0,null,0,null,null,null,0,null,0]
[null,null,null,null,null,0,null,0,null,null,null,0,null,0]
[null,null,null,null,null,0,null,0,null,null,null,0,null,0]
[null,null,null,null,null,0,null,0,null,null,null,0,null,0]
[null,null,null,null,null,0,null,0,null,null,null,0,null,0]
[null,null,null,null,null,0,null,0,null,null,null,0,null,0]
[null,null,null,null,null,0,null,0,null,null,null,0,null,0]
[null,null,null,null,null,0,null,0,null,null,null,0,null,0]
[null,null,null,null,null,0,null,0,null,null,null,0,null,0]
[null,null,null,null,null,0,null,0,null,null,null,0,null,0]
[null,null,null,null,null,0,null,0,null,null,null,0,null,0]
[null,null,null,null,null,0,null,0,null,null,null,0,null,0]
[null,null,null,null,null,0,null,0,null,null,null,0,null,0]
[null,null,null,null,null,0,null,0,null,null,null,0,null,0]
[null,null,null,null,null,0,null,0,null,null,null,0,null,0]
[null,null,null,null,null,0,null,0,null,null,null,0,null,0]
[null,null,null,null,null,0,null,0,null,null,null,0,null,0]
[null,null,null,null,null,0,null,0,null,null,null,0,null,0]
[null,null,null,null,null,0,null,0,null,null,null,0,null,0]
[null,null,null,null,null,0,null,0,null,null,null,0,null,0]
[null,null,null,null,null,0,null,0,null,null,null,0,null,0]
[null,null,null,null,null,0,null,0,null,null,null,0,null,0]
[null,null,null,null,null,0,null,0,null,null,null,0,null,0]
[null,null,null,null,null,0,null,0,null,null,null,0,null,0]
[null,null,null,null,null,0,null,0,null,null,null,0,null,0]
[null,null,null,null,null,0,null,0,null,null,null,0,null,0]
[null,null,null,null,null,0,null,0,null,null,null,0,null,0]
[null,null,null,null,null,0,null,0,null,null,null,0,null,0]
[null,null,null,null,null,0,null,0,null,null,null,0,null,0]
[null,null,null,null,null,0,null,0,null,null,null,0,null,0]
[null,null,null,null,null,0,null,0,null,null,null,0,null,0]
[null,null,null,null,null,0,null,0,null,null,null,0,null,0]
[null,null,null,null,null,0,null,0,null,null,null,0,null,0]
[null,null,null,null,null,0,null,0,null,null,null,0,null,0]
[null,null,null,null,null,0,null,0,null,null,null,0,null,0]
[null,null,null,null,null,0,null,0,null,null,null,0,null,0]
[null,null,null,null,null,0,null,0,null,null,null,0,null,0]
[null,null,null,null,null,0,null,0,null,null,null,0,null,0]
[null,null,null,null,null,0,null,0,null,null,null,0,null,0]
[null,null,null,null,null,0,null,0,null,null,null,0,null,0]
[null,null,null,null,null,{"$f":"SUM(D73*E73)","v":0},null,{"$f":"ROUND(F73*G73/100,2)","v":0},null,null,null,{"$f":"SUM(J73*K73)","v":0},null,{"$f":"ROUND(L73*M73/100,2)","v":0}]
[null,null,null,null,null,0,null,0,null,null,null,0,null,0]
[null,null,null,null,null,0,null,0,null,null,null,0,null,0]
[null,null,null,null,null,0,null,0,null,null,null,0,null,0]
[null,null,null,null,null,0,null,0,null,null,null,0,null,0]
[null,null,null,null,null,0,null,0,null,null,null,0,null,0]
[null,null,null,null,null,0,null,0,null,null,null,0,null,0]
[null,null,null,null,null,0,null,0,null,null,null,0,null,0]
[null,null,null,null,null,0,null,0,null,null,null,0,null,0]
[null,null,null,null,null,0,null,0,null,null,null,0,null,0]
[null,null,null,null,null,0,null,0,null,null,null,0,null,0]
[null,null,null,null,null,0,null,0,null,null,null,0,null,0]
[null,null,null,null,null,0,null,0,null,null,null,0,null,0]
[null,null,null,null,null,0,null,0,null,null,null,0,null,0]
[null,null,null,null,null,0,null,0,null,null,null,0,null,0]
[null,null,null,null,null,0,null,0,null,null,null,0,null,0]
[null,null,null,null,null,0,null,0,null,null,null,0,null,0]
[null,null,null,null,null,0,null,0,null,null,null,0,null,0]
[null,null,null,null,null,0,null,0,null,null,null,0,null,0]
[null,null,null,null,null,0,null,0,null,null,null,0,null,0]
[null,null,null,null,null,0,null,0,null,null,null,0,null,0]
[null,null,null,null,null,0,null,0,null,null,null,0,null,0]
[null,null,null,null,null,0,null,0,null,null,null,0,null,0]
[null,null,null,null,null,0,null,0,null,null,null,0,null,0]
[null,null,null,null,null,0,null,0,null,null,null,0,null,0]
[null,null,null,null,null,0,null,0,null,null,null,0,null,0]
[null,null,null,null,null,0,null,0,null,null,null,0,null,0]
[null,null,null,null,null,0,null,0,null,null,null,0,null,0]
[null,null,null,null,null,0,null,0,null,null,null,0,null,0]
[null,null,null,null,null,0,null,0,null,null,null,0,null,0]
[null,null,null,null,null,0,null,0,null,null,null,0,null,0]
[null,null,null,null,null,0,null,0,null,null,null,0,null,0]
[null,null,null,null,null,0,null,0,null,null,null,0,null,0]
[null,null,null,null,null,0,null,0,null,null,null,0,null,0]
[null,null,null,null,null,0,null,0,null,null,null,0,null,0]
[null,null,null,null,null,0,null,0,null,null,null,0,null,0]
[null,null,null,null,null,0,null,0,null,null,null,0,null,0]
[null,null,null,null,null,0,null,0,null,null,null,0,null,0]
[null,null,null,null,null,0,null,0,null,null,null,0,null,0]
[null,null,null,null,null,0,null,0,null,null,null,0,null,0]
[null,null,null,null,null,0,null,0,null,null,null,0,null,0]
[null,null,null,null,null,0,null,0,null,null,null,0,null,0]
[null,null,null,null,null,0,null,0,null,null,null,0,null,0]
[null,null,null,null,null,0,null,0,null,null,null,0,null,0]
[null,null,null,null,null,0,null,0,null,null,null,0,null,0]
[null,null,null,null,null,0,null,0,null,null,null,0,null,0]
[null,null,null,null,null,0,null,0,null,null,null,0,null,0]
[null,null,null,null,null,0,null,0,null,null,null,0,null,0]
[null,null,null,null,null,0,null,0,null,null,null,0,null,0]
[null,null,null,null,null,0,null,0,null,null,null,0,null,0]
[null,null,null,null,null,0,null,0,null,null,null,0,null,0]
[null,null,null,null,null,0,null,0,null,null,null,0,null,0]
[null,null,null,null,null,0,null,0,null,null,null,{"$f":"SUM(J125*K125)","v":0},null,0]

{"sheet":"3","index":3,"n_rows":125,"n_cols":15,"rows_kept":125,"cut":false,"hidden":false,"merged":[[4,1,5,1],[4,14,5,14],[0,13,0,14],[1,13,1,14]]}
[null,{"$f":"Ricapitolazione!D12","v":0},null,null,"Totale delle entrate",null,{"$f":"SUM(H7:H125)","v":0},"Litri 100%",null,null,null,null,null,"Numero di cliente"]
[null,null,null,null,"Totale delle uscite",null,{"$f":"SUM(N8:N125)","v":0},"Litri 100%",null,null,null,null,null,{"$f":"Ricapitolazione!H3","v":0}]
["Esercizio",{"$f":"Ricapitolazione!I6","v":0},null,null,"Saldo",null,{"$f":"SUM(G1-G2)","v":0},"Litri 100%"]
[]
[null,"In entrata: Produzione / fabbricazione\nIn uscita  : Nome e indirizzo dell'acquirente / utilizzazione\n                   per febbricazione / degustazione / regali",null,null,null,"Entrate",null,null,null,null,null,"Uscite",null,null,"Data della\ndichiarazione per l'imposizione"]
["Data",null,null,"Numero di\nbottiglie","Capacità","litri","% vol.","Litri 100 %",null,"Numero di\nbottiglie","Capacità","Litri","% vol.","Litri 100 %"]
[" ","Stock iniziale / riporto",null,null,null,{"$f":"SUM(D7*E7)","v":0},null,{"$f":"ROUND(F7*G7/100,2)","v":0}]
[null,null,null,null,null,{"$f":"SUM(D8*E8)","v":0},null,{"$f":"ROUND(F8*G8/100,2)","v":0},null,null,null,{"$f":"SUM(J8*K8)","v":0},null,{"$f":"ROUND(L8*M8/100,2)","v":0}]
[null,null,null,null,null,{"$f":"SUM(D9*E9)","v":0},null,{"$f":"ROUND(F9*G9/100,2)","v":0},null,null,null,{"$f":"SUM(J9*K9)","v":0},null,{"$f":"ROUND(L9*M9/100,2)","v":0}]
[null,null,null,null,null,0,null,0,null,null,null,0,null,0]
[null,null,null,null,null,0,null,0,null,null,null,0,null,0]
[null,null,null,null,null,0,null,0,null,null,null,0,null,0]
[null,null,null,null,null,0,null,0,null,null,null,0,null,0]
[null,null,null,null,null,0,null,0,null,null,null,0,null,0]
[null,null,null,null,null,0,null,0,null,null,null,0,null,0]
[null,null,null,null,null,0,null,0,null,null,null,0,null,0]
[null,null,null,null,null,0,null,0,null,null,null,0,null,0]
[null,null,null,null,null,0,null,0,null,null,null,0,null,0]
[null,null,null,null,null,0,null,0,null,null,null,0,null,0]
[null,null,null,null,null,0,null,0,null,null,null,0,null,0]
[null,null,null,null,null,0,null,0,null,null,null,0,null,0]
[null,null,null,null,null,0,null,0,null,null,null,0,null,0]
[null,null,null,null,null,0,null,0,null,null,null,0,null,0]
[null,null,null,null,null,0,null,0,null,null,null,0,null,0]
[null,null,null,null,null,0,null,0,null,null,null,0,null,0]
[null,null,null,null,null,0,null,0,null,null,null,0,null,0]
[null,null,null,null,null,0,null,0,null,null,null,0,null,0]
[null,null,null,null,null,0,null,0,null,null,null,0,null,0]
[null,null,null,null,null,0,null,0,null,null,null,0,null,0]
[null,null,null,null,null,0,null,0,null,null,null,0,null,0]
[null,null,null,null,null,0,null,0,null,null,null,0,null,0]
[null,null,null,null,null,0,null,0,null,null,null,0,null,0]
[null,null,null,null,null,0,null,0,null,null,null,0,null,0]
[null,null,null,null,null,0,null,0,null,null,null,0,null,0]
[null,null,null,null,null,0,null,0,null,null,null,0,null,0]
[null,null,null,null,null,0,null,0,null,null,null,0,null,0]
[null,null,null,null,null,0,null,0,null,null,null,0,null,0]
[null,null,null,null,null,0,null,0,null,null,null,0,null,0]
[null,null,null,null,null,0,null,0,null,null,null,0,null,0]
[null,null,null,null,null,0,null,0,null,null,null,0,null,0]
[null,null,null,null,null,0,null,0,null,null,null,0,null,0]
[null,null,null,null,null,0,null,0,null,null,null,0,null,0]
[null,null,null,null,null,0,null,0,null,null,null,0,null,0]
[null,null,null,null,null,0,null,0,null,null,null,0,null,0]
[null,null,null,null,null,0,null,0,null,null,null,0,null,0]
[null,null,null,null,null,0,null,0,null,null,null,0,null,0]
[null,null,null,null,null,0,null,0,null,null,null,0,null,0]
[null,null,null,null,null,0,null,0,null,null,null,0,null,0]
[null,null,null,null,null,0,null,0,null,null,null,0,null,0]
[null,null,null,null,null,0,null,0,null,null,null,0,null,0]
[null,null,null,null,null,0,null,0,null,null,null,0,null,0]
[null,null,null,null,null,0,null,0,null,null,null,0,null,0]
[null,null,null,null,null,0,null,0,null,null,null,0,null,0]
[null,null,null,null,null,0,null,0,null,null,null,0,null,0]
[null,null,null,null,null,0,null,0,null,null,null,0,null,0]
[null,null,null,null,null,0,null,0,null,null,null,0,null,0]
[null,null,null,null,null,0,null,0,null,null,null,0,null,0]
[null,null,null,null,null,0,null,0,null,null,null,0,null,0]
[null,null,null,null,null,0,null,0,null,null,null,0,null,0]
[null,null,null,null,null,0,null,0,null,null,null,0,null,0]
[null,null,null,null,null,0,null,0,null,null,null,0,null,0]
[null,null,null,null,null,0,null,0,null,null,null,0,null,0]
[null,null,null,null,null,0,null,0,null,null,null,0,null,0]
[null,null,null,null,null,0,null,0,null,null,null,0,null,0]
[null,null,null,null,null,0,null,0,null,null,null,0,null,0]
[null,null,null,null,null,0,null,0,null,null,null,0,null,0]
[null,null,null,null,null,0,null,0,null,null,null,0,null,0]
[null,null,null,null,null,0,null,0,null,null,null,0,null,0]
[null,null,null,null,null,0,null,0,null,null,null,0,null,0]
[null,null,null,null,null,0,null,0,null,null,null,0,null,0]
[null,null,null,null,null,0,null,0,null,null,null,0,null,0]
[null,null,null,null,null,0,null,0,null,null,null,0,null,0]
[null,null,null,null,null,{"$f":"SUM(D73*E73)","v":0},null,{"$f":"ROUND(F73*G73/100,2)","v":0},null,null,null,{"$f":"SUM(J73*K73)","v":0},null,{"$f":"ROUND(L73*M73/100,2)","v":0}]
[null,null,null,null,null,0,null,0,null,null,null,0,null,0]
[null,null,null,null,null,0,null,0,null,null,null,0,null,0]
[null,null,null,null,null,0,null,0,null,null,null,0,null,0]
[null,null,null,null,null,0,null,0,null,null,null,0,null,0]
[null,null,null,null,null,0,null,0,null,null,null,0,null,0]
[null,null,null,null,null,0,null,0,null,null,null,0,null,0]
[null,null,null,null,null,0,null,0,null,null,null,0,null,0]
[null,null,null,null,null,0,null,0,null,null,null,0,null,0]
[null,null,null,null,null,0,null,0,null,null,null,0,null,0]
[null,null,null,null,null,0,null,0,null,null,null,0,null,0]
[null,null,null,null,null,0,null,0,null,null,null,0,null,0]
[null,null,null,null,null,0,null,0,null,null,null,0,null,0]
[null,null,null,null,null,0,null,0,null,null,null,0,null,0]
[null,null,null,null,null,0,null,0,null,null,null,0,null,0]
[null,null,null,null,null,0,null,0,null,null,null,0,null,0]
[null,null,null,null,null,0,null,0,null,null,null,0,null,0]
[null,null,null,null,null,0,null,0,null,null,null,0,null,0]
[null,null,null,null,null,0,null,0,null,null,null,0,null,0]
[null,null,null,null,null,0,null,0,null,null,null,0,null,0]
[null,null,null,null,null,0,null,0,null,null,null,0,null,0]
[null,null,null,null,null,0,null,0,null,null,null,0,null,0]
[null,null,null,null,null,0,null,0,null,null,null,0,null,0]
[null,null,null,null,null,0,null,0,null,null,null,0,null,0]
[null,null,null,null,null,0,null,0,null,null,null,0,null,0]
[null,null,null,null,null,0,null,0,null,null,null,0,null,0]
[null,null,null,null,null,0,null,0,null,null,null,0,null,0]
[null,null,null,null,null,0,null,0,null,null,null,0,null,0]
[null,null,null,null,null,0,null,0,null,null,null,0,null,0]
[null,null,null,null,null,0,null,0,null,null,null,0,null,0]
[null,null,null,null,null,0,null,0,null,null,null,0,null,0]
[null,null,null,null,null,0,null,0,null,null,null,0,null,0]
[null,null,null,null,null,0,null,0,null,null,null,0,null,0]
[null,null,null,null,null,0,null,0,null,null,null,0,null,0]
[null,null,null,null,null,0,null,0,null,null,null,0,null,0]
[null,null,null,null,null,0,null,0,null,null,null,0,null,0]
[null,null,null,null,null,0,null,0,null,null,null,0,null,0]
[null,null,null,null,null,0,null,0,null,null,null,0,null,0]
[null,null,null,null,null,0,null,0,null,null,null,0,null,0]
[null,null,null,null,null,0,null,0,null,null,null,0,null,0]
[null,null,null,null,null,0,null,0,null,null,null,0,null,0]
[null,null,null,null,null,0,null,0,null,null,null,0,null,0]
[null,null,null,null,null,0,null,0,null,null,null,0,null,0]
[null,null,null,null,null,0,null,0,null,null,null,0,null,0]
[null,null,null,null,null,0,null,0,null,null,null,0,null,0]
[null,null,null,null,null,0,null,0,null,null,null,0,null,0]
[null,null,null,null,null,0,null,0,null,null,null,0,null,0]
[null,null,null,null,null,0,null,0,null,null,null,0,null,0]
[null,null,null,null,null,0,null,0,null,null,null,0,null,0]
[null,null,null,null,null,0,null,0,null,null,null,0,null,0]
[null,null,null,null,null,0,null,0,null,null,null,0,null,0]
[null,null,null,null,null,0,null,0,null,null,null,0,null,0]
[null,null,null,null,null,0,null,0,null,null,null,{"$f":"SUM(J125*K125)","v":0},null,0]

{"sheet":"4","index":4,"n_rows":125,"n_cols":15,"rows_kept":125,"cut":false,"hidden":false,"merged":[[4,1,5,1],[4,14,5,14],[0,13,0,14],[1,13,1,14]]}
[null,{"$f":"Ricapitolazione!D13","v":0},null,null,"Totale delle entrate",null,{"$f":"SUM(H7:H125)","v":0},"Litri 100%",null,null,null,null,null,"Numero di cliente"]
[null,null,null,null,"Totale delle uscite",null,{"$f":"SUM(N8:N125)","v":0},"Litri 100%",null,null,null,null,null,{"$f":"Ricapitolazione!H3","v":0}]
["Esercizio",{"$f":"Ricapitolazione!I6","v":0},null,null,"Saldo",null,{"$f":"SUM(G1-G2)","v":0},"Litri 100%"]
[]
[null,"In entrata: Produzione / fabbricazione\nIn uscita  : Nome e indirizzo dell'acquirente / utilizzazione\n                   per febbricazione / degustazione / regali",null,null,null,"Entrate",null,null,null,null,null,"Uscite",null,null,"Data della\ndichiarazione per l'imposizione"]
["Data",null,null,"Numero di\nbottiglie","Capacità","litri","% vol.","Litri 100 %",null,"Numero di\nbottiglie","Capacità","Litri","% vol.","Litri 100 %"]
[" ","Stock iniziale / riporto",null,null,null,{"$f":"SUM(D7*E7)","v":0},null,{"$f":"ROUND(F7*G7/100,2)","v":0}]
[null,null,null,null,null,{"$f":"SUM(D8*E8)","v":0},null,{"$f":"ROUND(F8*G8/100,2)","v":0},null,null,null,{"$f":"SUM(J8*K8)","v":0},null,{"$f":"ROUND(L8*M8/100,2)","v":0}]
[null,null,null,null,null,{"$f":"SUM(D9*E9)","v":0},null,{"$f":"ROUND(F9*G9/100,2)","v":0},null,null,null,{"$f":"SUM(J9*K9)","v":0},null,{"$f":"ROUND(L9*M9/100,2)","v":0}]
[null,null,null,null,null,0,null,0,null,null,null,0,null,0]
[null,null,null,null,null,0,null,0,null,null,null,0,null,0]
[null,null,null,null,null,0,null,0,null,null,null,0,null,0]
[null,null,null,null,null,0,null,0,null,null,null,0,null,0]
[null,null,null,null,null,0,null,0,null,null,null,0,null,0]
[null,null,null,null,null,0,null,0,null,null,null,0,null,0]
[null,null,null,null,null,0,null,0,null,null,null,0,null,0]
[null,null,null,null,null,0,null,0,null,null,null,0,null,0]
[null,null,null,null,null,0,null,0,null,null,null,0,null,0]
[null,null,null,null,null,0,null,0,null,null,null,0,null,0]
[null,null,null,null,null,0,null,0,null,null,null,0,null,0]
[null,null,null,null,null,0,null,0,null,null,null,0,null,0]
[null,null,null,null,null,0,null,0,null,null,null,0,null,0]
[null,null,null,null,null,0,null,0,null,null,null,0,null,0]
[null,null,null,null,null,0,null,0,null,null,null,0,null,0]
[null,null,null,null,null,0,null,0,null,null,null,0,null,0]
[null,null,null,null,null,0,null,0,null,null,null,0,null,0]
[null,null,null,null,null,0,null,0,null,null,null,0,null,0]
[null,null,null,null,null,0,null,0,null,null,null,0,null,0]
[null,null,null,null,null,0,null,0,null,null,null,0,null,0]
[null,null,null,null,null,0,null,0,null,null,null,0,null,0]
[null,null,null,null,null,0,null,0,null,null,null,0,null,0]
[null,null,null,null,null,0,null,0,null,null,null,0,null,0]
[null,null,null,null,null,0,null,0,null,null,null,0,null,0]
[null,null,null,null,null,0,null,0,null,null,null,0,null,0]
[null,null,null,null,null,0,null,0,null,null,null,0,null,0]
[null,null,null,null,null,0,null,0,null,null,null,0,null,0]
[null,null,null,null,null,0,null,0,null,null,null,0,null,0]
[null,null,null,null,null,0,null,0,null,null,null,0,null,0]
[null,null,null,null,null,0,null,0,null,null,null,0,null,0]
[null,null,null,null,null,0,null,0,null,null,null,0,null,0]
[null,null,null,null,null,0,null,0,null,null,null,0,null,0]
[null,null,null,null,null,0,null,0,null,null,null,0,null,0]
[null,null,null,null,null,0,null,0,null,null,null,0,null,0]
[null,null,null,null,null,0,null,0,null,null,null,0,null,0]
[null,null,null,null,null,0,null,0,null,null,null,0,null,0]
[null,null,null,null,null,0,null,0,null,null,null,0,null,0]
[null,null,null,null,null,0,null,0,null,null,null,0,null,0]
[null,null,null,null,null,0,null,0,null,null,null,0,null,0]
[null,null,null,null,null,0,null,0,null,null,null,0,null,0]
[null,null,null,null,null,0,null,0,null,null,null,0,null,0]
[null,null,null,null,null,0,null,0,null,null,null,0,null,0]
[null,null,null,null,null,0,null,0,null,null,null,0,null,0]
[null,null,null,null,null,0,null,0,null,null,null,0,null,0]
[null,null,null,null,null,0,null,0,null,null,null,0,null,0]
[null,null,null,null,null,0,null,0,null,null,null,0,null,0]
[null,null,null,null,null,0,null,0,null,null,null,0,null,0]
[null,null,null,null,null,0,null,0,null,null,null,0,null,0]
[null,null,null,null,null,0,null,0,null,null,null,0,null,0]
[null,null,null,null,null,0,null,0,null,null,null,0,null,0]
[null,null,null,null,null,0,null,0,null,null,null,0,null,0]
[null,null,null,null,null,0,null,0,null,null,null,0,null,0]
[null,null,null,null,null,0,null,0,null,null,null,0,null,0]
[null,null,null,null,null,0,null,0,null,null,null,0,null,0]
[null,null,null,null,null,0,null,0,null,null,null,0,null,0]
[null,null,null,null,null,0,null,0,null,null,null,0,null,0]
[null,null,null,null,null,0,null,0,null,null,null,0,null,0]
[null,null,null,null,null,0,null,0,null,null,null,0,null,0]
[null,null,null,null,null,0,null,0,null,null,null,0,null,0]
[null,null,null,null,null,0,null,0,null,null,null,0,null,0]
[null,null,null,null,null,0,null,0,null,null,null,0,null,0]
[null,null,null,null,null,0,null,0,null,null,null,0,null,0]
[null,null,null,null,null,0,null,0,null,null,null,0,null,0]
[null,null,null,null,null,{"$f":"SUM(D73*E73)","v":0},null,{"$f":"ROUND(F73*G73/100,2)","v":0},null,null,null,{"$f":"SUM(J73*K73)","v":0},null,{"$f":"ROUND(L73*M73/100,2)","v":0}]
[null,null,null,null,null,0,null,0,null,null,null,0,null,0]
[null,null,null,null,null,0,null,0,null,null,null,0,null,0]
[null,null,null,null,null,0,null,0,null,null,null,0,null,0]
[null,null,null,null,null,0,null,0,null,null,null,0,null,0]
[null,null,null,null,null,0,null,0,null,null,null,0,null,0]
[null,null,null,null,null,0,null,0,null,null,null,0,null,0]
[null,null,null,null,null,0,null,0,null,null,null,0,null,0]
[null,null,null,null,null,0,null,0,null,null,null,0,null,0]
[null,null,null,null,null,0,null,0,null,null,null,0,null,0]
[null,null,null,null,null,0,null,0,null,null,null,0,null,0]
[null,null,null,null,null,0,null,0,null,null,null,0,null,0]
[null,null,null,null,null,0,null,0,null,null,null,0,null,0]
[null,null,null,null,null,0,null,0,null,null,null,0,null,0]
[null,null,null,null,null,0,null,0,null,null,null,0,null,0]
[null,null,null,null,null,0,null,0,null,null,null,0,null,0]
[null,null,null,null,null,0,null,0,null,null,null,0,null,0]
[null,null,null,null,null,0,null,0,null,null,null,0,null,0]
[null,null,null,null,null,0,null,0,null,null,null,0,null,0]
[null,null,null,null,null,0,null,0,null,null,null,0,null,0]
[null,null,null,null,null,0,null,0,null,null,null,0,null,0]
[null,null,null,null,null,0,null,0,null,null,null,0,null,0]
[null,null,null,null,null,0,null,0,null,null,null,0,null,0]
[null,null,null,null,null,0,null,0,null,null,null,0,null,0]
[null,null,null,null,null,0,null,0,null,null,null,0,null,0]
[null,null,null,null,null,0,null,0,null,null,null,0,null,0]
[null,null,null,null,null,0,null,0,null,null,null,0,null,0]
[null,null,null,null,null,0,null,0,null,null,null,0,null,0]
[null,null,null,null,null,0,null,0,null,null,null,0,null,0]
[null,null,null,null,null,0,null,0,null,null,null,0,null,0]
[null,null,null,null,null,0,null,0,null,null,null,0,null,0]
[null,null,null,null,null,0,null,0,null,null,null,0,null,0]
[null,null,null,null,null,0,null,0,null,null,null,0,null,0]
[null,null,null,null,null,0,null,0,null,null,null,0,null,0]
[null,null,null,null,null,0,null,0,null,null,null,0,null,0]
[null,null,null,null,null,0,null,0,null,null,null,0,null,0]
[null,null,null,null,null,0,null,0,null,null,null,0,null,0]
[null,null,null,null,null,0,null,0,null,null,null,0,null,0]
[null,null,null,null,null,0,null,0,null,null,null,0,null,0]
[null,null,null,null,null,0,null,0,null,null,null,0,null,0]
[null,null,null,null,null,0,null,0,null,null,null,0,null,0]
[null,null,null,null,null,0,null,0,null,null,null,0,null,0]
[null,null,null,null,null,0,null,0,null,null,null,0,null,0]
[null,null,null,null,null,0,null,0,null,null,null,0,null,0]
[null,null,null,null,null,0,null,0,null,null,null,0,null,0]
[null,null,null,null,null,0,null,0,null,null,null,0,null,0]
[null,null,null,null,null,0,null,0,null,null,null,0,null,0]
[null,null,null,null,null,0,null,0,null,null,null,0,null,0]
[null,null,null,null,null,0,null,0,null,null,null,0,null,0]
[null,null,null,null,null,0,null,0,null,null,null,0,null,0]
[null,null,null,null,null,0,null,0,null,null,null,0,null,0]
[null,null,null,null,null,0,null,0,null,null,null,0,null,0]
[null,null,null,null,null,0,null,0,null,null,null,{"$f":"SUM(J125*K125)","v":0},null,0]

{"sheet":"5","index":5,"n_rows":125,"n_cols":15,"rows_kept":125,"cut":false,"hidden":false,"merged":[[4,1,5,1],[4,14,5,14],[0,13,0,14],[1,13,1,14]]}
[null,{"$f":"Ricapitolazione!D14","v":0},null,null,"Totale delle entrate",null,{"$f":"SUM(H7:H125)","v":0},"Litri 100%",null,null,null,null,null,"Numero di cliente"]
[null,null,null,null,"Totale delle uscite",null,{"$f":"SUM(N8:N125)","v":0},"Litri 100%",null,null,null,null,null,{"$f":"Ricapitolazione!H3","v":0}]
["Esercizio",{"$f":"Ricapitolazione!I6","v":0},null,null,"Saldo",null,{"$f":"SUM(G1-G2)","v":0},"Litri 100%"]
[]
[null,"In entrata: Produzione / fabbricazione\nIn uscita  : Nome e indirizzo dell'acquirente / utilizzazione\n                   per febbricazione / degustazione / regali",null,null,null,"Entrate",null,null,null,null,null,"Uscite",null,null,"Data della\ndichiarazione per l'imposizione"]
["Data",null,null,"Numero di\nbottiglie","Capacità","litri","% vol.","Litri 100 %",null,"Numero di\nbottiglie","Capacità","Litri","% vol.","Litri 100 %"]
[" ","Stock iniziale / riporto",null,null,null,{"$f":"SUM(D7*E7)","v":0},null,{"$f":"ROUND(F7*G7/100,2)","v":0}]
[null,null,null,null,null,{"$f":"SUM(D8*E8)","v":0},null,{"$f":"ROUND(F8*G8/100,2)","v":0},null,null,null,{"$f":"SUM(J8*K8)","v":0},null,{"$f":"ROUND(L8*M8/100,2)","v":0}]
[null,null,null,null,null,{"$f":"SUM(D9*E9)","v":0},null,{"$f":"ROUND(F9*G9/100,2)","v":0},null,null,null,{"$f":"SUM(J9*K9)","v":0},null,{"$f":"ROUND(L9*M9/100,2)","v":0}]
[null,null,null,null,null,0,null,0,null,null,null,0,null,0]
[null,null,null,null,null,0,null,0,null,null,null,0,null,0]
[null,null,null,null,null,0,null,0,null,null,null,0,null,0]
[null,null,null,null,null,0,null,0,null,null,null,0,null,0]
[null,null,null,null,null,0,null,0,null,null,null,0,null,0]
[null,null,null,null,null,0,null,0,null,null,null,0,null,0]
[null,null,null,null,null,0,null,0,null,null,null,0,null,0]
[null,null,null,null,null,0,null,0,null,null,null,0,null,0]
[null,null,null,null,null,0,null,0,null,null,null,0,null,0]
[null,null,null,null,null,0,null,0,null,null,null,0,null,0]
[null,null,null,null,null,0,null,0,null,null,null,0,null,0]
[null,null,null,null,null,0,null,0,null,null,null,0,null,0]
[null,null,null,null,null,0,null,0,null,null,null,0,null,0]
[null,null,null,null,null,0,null,0,null,null,null,0,null,0]
[null,null,null,null,null,0,null,0,null,null,null,0,null,0]
[null,null,null,null,null,0,null,0,null,null,null,0,null,0]
[null,null,null,null,null,0,null,0,null,null,null,0,null,0]
[null,null,null,null,null,0,null,0,null,null,null,0,null,0]
[null,null,null,null,null,0,null,0,null,null,null,0,null,0]
[null,null,null,null,null,0,null,0,null,null,null,0,null,0]
[null,null,null,null,null,0,null,0,null,null,null,0,null,0]
[null,null,null,null,null,0,null,0,null,null,null,0,null,0]
[null,null,null,null,null,0,null,0,null,null,null,0,null,0]
[null,null,null,null,null,0,null,0,null,null,null,0,null,0]
[null,null,null,null,null,0,null,0,null,null,null,0,null,0]
[null,null,null,null,null,0,null,0,null,null,null,0,null,0]
[null,null,null,null,null,0,null,0,null,null,null,0,null,0]
[null,null,null,null,null,0,null,0,null,null,null,0,null,0]
[null,null,null,null,null,0,null,0,null,null,null,0,null,0]
[null,null,null,null,null,0,null,0,null,null,null,0,null,0]
[null,null,null,null,null,0,null,0,null,null,null,0,null,0]
[null,null,null,null,null,0,null,0,null,null,null,0,null,0]
[null,null,null,null,null,0,null,0,null,null,null,0,null,0]
[null,null,null,null,null,0,null,0,null,null,null,0,null,0]
[null,null,null,null,null,0,null,0,null,null,null,0,null,0]
[null,null,null,null,null,0,null,0,null,null,null,0,null,0]
[null,null,null,null,null,0,null,0,null,null,null,0,null,0]
[null,null,null,null,null,0,null,0,null,null,null,0,null,0]
[null,null,null,null,null,0,null,0,null,null,null,0,null,0]
[null,null,null,null,null,0,null,0,null,null,null,0,null,0]
[null,null,null,null,null,0,null,0,null,null,null,0,null,0]
[null,null,null,null,null,0,null,0,null,null,null,0,null,0]
[null,null,null,null,null,0,null,0,null,null,null,0,null,0]
[null,null,null,null,null,0,null,0,null,null,null,0,null,0]
[null,null,null,null,null,0,null,0,null,null,null,0,null,0]
[null,null,null,null,null,0,null,0,null,null,null,0,null,0]
[null,null,null,null,null,0,null,0,null,null,null,0,null,0]
[null,null,null,null,null,0,null,0,null,null,null,0,null,0]
[null,null,null,null,null,0,null,0,null,null,null,0,null,0]
[null,null,null,null,null,0,null,0,null,null,null,0,null,0]
[null,null,null,null,null,0,null,0,null,null,null,0,null,0]
[null,null,null,null,null,0,null,0,null,null,null,0,null,0]
[null,null,null,null,null,0,null,0,null,null,null,0,null,0]
[null,null,null,null,null,0,null,0,null,null,null,0,null,0]
[null,null,null,null,null,0,null,0,null,null,null,0,null,0]
[null,null,null,null,null,0,null,0,null,null,null,0,null,0]
[null,null,null,null,null,0,null,0,null,null,null,0,null,0]
[null,null,null,null,null,0,null,0,null,null,null,0,null,0]
[null,null,null,null,null,0,null,0,null,null,null,0,null,0]
[null,null,null,null,null,0,null,0,null,null,null,0,null,0]
[null,null,null,null,null,0,null,0,null,null,null,0,null,0]
[null,null,null,null,null,0,null,0,null,null,null,0,null,0]
[null,null,null,null,null,0,null,0,null,null,null,0,null,0]
[null,null,null,null,null,{"$f":"SUM(D73*E73)","v":0},null,{"$f":"ROUND(F73*G73/100,2)","v":0},null,null,null,{"$f":"SUM(J73*K73)","v":0},null,{"$f":"ROUND(L73*M73/100,2)","v":0}]
[null,null,null,null,null,0,null,0,null,null,null,0,null,0]
[null,null,null,null,null,0,null,0,null,null,null,0,null,0]
[null,null,null,null,null,0,null,0,null,null,null,0,null,0]
[null,null,null,null,null,0,null,0,null,null,null,0,null,0]
[null,null,null,null,null,0,null,0,null,null,null,0,null,0]
[null,null,null,null,null,0,null,0,null,null,null,0,null,0]
[null,null,null,null,null,0,null,0,null,null,null,0,null,0]
[null,null,null,null,null,0,null,0,null,null,null,0,null,0]
[null,null,null,null,null,0,null,0,null,null,null,0,null,0]
[null,null,null,null,null,0,null,0,null,null,null,0,null,0]
[null,null,null,null,null,0,null,0,null,null,null,0,null,0]
[null,null,null,null,null,0,null,0,null,null,null,0,null,0]
[null,null,null,null,null,0,null,0,null,null,null,0,null,0]
[null,null,null,null,null,0,null,0,null,null,null,0,null,0]
[null,null,null,null,null,0,null,0,null,null,null,0,null,0]
[null,null,null,null,null,0,null,0,null,null,null,0,null,0]
[null,null,null,null,null,0,null,0,null,null,null,0,null,0]
[null,null,null,null,null,0,null,0,null,null,null,0,null,0]
[null,null,null,null,null,0,null,0,null,null,null,0,null,0]
[null,null,null,null,null,0,null,0,null,null,null,0,null,0]
[null,null,null,null,null,0,null,0,null,null,null,0,null,0]
[null,null,null,null,null,0,null,0,null,null,null,0,null,0]
[null,null,null,null,null,0,null,0,null,null,null,0,null,0]
[null,null,null,null,null,0,null,0,null,null,null,0,null,0]
[null,null,null,null,null,0,null,0,null,null,null,0,null,0]
[null,null,null,null,null,0,null,0,null,null,null,0,null,0]
[null,null,null,null,null,0,null,0,null,null,null,0,null,0]
[null,null,null,null,null,0,null,0,null,null,null,0,null,0]
[null,null,null,null,null,0,null,0,null,null,null,0,null,0]
[null,null,null,null,null,0,null,0,null,null,null,0,null,0]
[null,null,null,null,null,0,null,0,null,null,null,0,null,0]
[null,null,null,null,null,0,null,0,null,null,null,0,null,0]
[null,null,null,null,null,0,null,0,null,null,null,0,null,0]
[null,null,null,null,null,0,null,0,null,null,null,0,null,0]
[null,null,null,null,null,0,null,0,null,null,null,0,null,0]
[null,null,null,null,null,0,null,0,null,null,null,0,null,0]
[null,null,null,null,null,0,null,0,null,null,null,0,null,0]
[null,null,null,null,null,0,null,0,null,null,null,0,null,0]
[null,null,null,null,null,0,null,0,null,null,null,0,null,0]
[null,null,null,null,null,0,null,0,null,null,null,0,null,0]
[null,null,null,null,null,0,null,0,null,null,null,0,null,0]
[null,null,null,null,null,0,null,0,null,null,null,0,null,0]
[null,null,null,null,null,0,null,0,null,null,null,0,null,0]
[null,null,null,null,null,0,null,0,null,null,null,0,null,0]
[null,null,null,null,null,0,null,0,null,null,null,0,null,0]
[null,null,null,null,null,0,null,0,null,null,null,0,null,0]
[null,null,null,null,null,0,null,0,null,null,null,0,null,0]
[null,null,null,null,null,0,null,0,null,null,null,0,null,0]
[null,null,null,null,null,0,null,0,null,null,null,0,null,0]
[null,null,null,null,null,0,null,0,null,null,null,0,null,0]
[null,null,null,null,null,0,null,0,null,null,null,0,null,0]
[null,null,null,null,null,0,null,0,null,null,null,{"$f":"SUM(J125*K125)","v":0},null,0]

{"sheet":"6","index":6,"n_rows":125,"n_cols":15,"rows_kept":125,"cut":false,"hidden":false,"merged":[[4,1,5,1],[4,14,5,14],[0,13,0,14],[1,13,1,14]]}
[null,{"$f":"Ricapitolazione!D15","v":0},null,null,"Totale delle entrate",null,{"$f":"SUM(H7:H125)","v":0},"Litri 100%",null,null,null,null,null,"Numero di cliente"]
[null,null,null,null,"Totale delle uscite",null,{"$f":"SUM(N8:N125)","v":0},"Litri 100%",null,null,null,null,null,{"$f":"Ricapitolazione!H3","v":0}]
["Esercizio",{"$f":"Ricapitolazione!I6","v":0},null,null,"Saldo",null,{"$f":"SUM(G1-G2)","v":0},"Litri 100%"]
[]
[null,"In entrata: Produzione / fabbricazione\nIn uscita  : Nome e indirizzo dell'acquirente / utilizzazione\n                   per febbricazione / degustazione / regali",null,null,null,"Entrate",null,null,null,null,null,"Uscite",null,null,"Data della\ndichiarazione per l'imposizione"]
["Data",null,null,"Numero di\nbottiglie","Capacità","litri","% vol.","Litri 100 %",null,"Numero di\nbottiglie","Capacità","Litri","% vol.","Litri 100 %"]
[" ","Stock iniziale / riporto",null,null,null,{"$f":"SUM(D7*E7)","v":0},null,{"$f":"ROUND(F7*G7/100,2)","v":0}]
[null,null,null,null,null,{"$f":"SUM(D8*E8)","v":0},null,{"$f":"ROUND(F8*G8/100,2)","v":0},null,null,null,{"$f":"SUM(J8*K8)","v":0},null,{"$f":"ROUND(L8*M8/100,2)","v":0}]
[null,null,null,null,null,{"$f":"SUM(D9*E9)","v":0},null,{"$f":"ROUND(F9*G9/100,2)","v":0},null,null,null,{"$f":"SUM(J9*K9)","v":0},null,{"$f":"ROUND(L9*M9/100,2)","v":0}]
[null,null,null,null,null,0,null,0,null,null,null,0,null,0]
[null,null,null,null,null,0,null,0,null,null,null,0,null,0]
[null,null,null,null,null,0,null,0,null,null,null,0,null,0]
[null,null,null,null,null,0,null,0,null,null,null,0,null,0]
[null,null,null,null,null,0,null,0,null,null,null,0,null,0]
[null,null,null,null,null,0,null,0,null,null,null,0,null,0]
[null,null,null,null,null,0,null,0,null,null,null,0,null,0]
[null,null,null,null,null,0,null,0,null,null,null,0,null,0]
[null,null,null,null,null,0,null,0,null,null,null,0,null,0]
[null,null,null,null,null,0,null,0,null,null,null,0,null,0]
[null,null,null,null,null,0,null,0,null,null,null,0,null,0]
[null,null,null,null,null,0,null,0,null,null,null,0,null,0]
[null,null,null,null,null,0,null,0,null,null,null,0,null,0]
[null,null,null,null,null,0,null,0,null,null,null,0,null,0]
[null,null,null,null,null,0,null,0,null,null,null,0,null,0]
[null,null,null,null,null,0,null,0,null,null,null,0,null,0]
[null,null,null,null,null,0,null,0,null,null,null,0,null,0]
[null,null,null,null,null,0,null,0,null,null,null,0,null,0]
[null,null,null,null,null,0,null,0,null,null,null,0,null,0]
[null,null,null,null,null,0,null,0,null,null,null,0,null,0]
[null,null,null,null,null,0,null,0,null,null,null,0,null,0]
[null,null,null,null,null,0,null,0,null,null,null,0,null,0]
[null,null,null,null,null,0,null,0,null,null,null,0,null,0]
[null,null,null,null,null,0,null,0,null,null,null,0,null,0]
[null,null,null,null,null,0,null,0,null,null,null,0,null,0]
[null,null,null,null,null,0,null,0,null,null,null,0,null,0]
[null,null,null,null,null,0,null,0,null,null,null,0,null,0]
[null,null,null,null,null,0,null,0,null,null,null,0,null,0]
[null,null,null,null,null,0,null,0,null,null,null,0,null,0]
[null,null,null,null,null,0,null,0,null,null,null,0,null,0]
[null,null,null,null,null,0,null,0,null,null,null,0,null,0]
[null,null,null,null,null,0,null,0,null,null,null,0,null,0]
[null,null,null,null,null,0,null,0,null,null,null,0,null,0]
[null,null,null,null,null,0,null,0,null,null,null,0,null,0]
[null,null,null,null,null,0,null,0,null,null,null,0,null,0]
[null,null,null,null,null,0,null,0,null,null,null,0,null,0]
[null,null,null,null,null,0,null,0,null,null,null,0,null,0]
[null,null,null,null,null,0,null,0,null,null,null,0,null,0]
[null,null,null,null,null,0,null,0,null,null,null,0,null,0]
[null,null,null,null,null,0,null,0,null,null,null,0,null,0]
[null,null,null,null,null,0,null,0,null,null,null,0,null,0]
[null,null,null,null,null,0,null,0,null,null,null,0,null,0]
[null,null,null,null,null,0,null,0,null,null,null,0,null,0]
[null,null,null,null,null,0,null,0,null,null,null,0,null,0]
[null,null,null,null,null,0,null,0,null,null,null,0,null,0]
[null,null,null,null,null,0,null,0,null,null,null,0,null,0]
[null,null,null,null,null,0,null,0,null,null,null,0,null,0]
[null,null,null,null,null,0,null,0,null,null,null,0,null,0]
[null,null,null,null,null,0,null,0,null,null,null,0,null,0]
[null,null,null,null,null,0,null,0,null,null,null,0,null,0]
[null,null,null,null,null,0,null,0,null,null,null,0,null,0]
[null,null,null,null,null,0,null,0,null,null,null,0,null,0]
[null,null,null,null,null,0,null,0,null,null,null,0,null,0]
[null,null,null,null,null,0,null,0,null,null,null,0,null,0]
[null,null,null,null,null,0,null,0,null,null,null,0,null,0]
[null,null,null,null,null,0,null,0,null,null,null,0,null,0]
[null,null,null,null,null,0,null,0,null,null,null,0,null,0]
[null,null,null,null,null,0,null,0,null,null,null,0,null,0]
[null,null,null,null,null,0,null,0,null,null,null,0,null,0]
[null,null,null,null,null,0,null,0,null,null,null,0,null,0]
[null,null,null,null,null,0,null,0,null,null,null,0,null,0]
[null,null,null,null,null,0,null,0,null,null,null,0,null,0]
[null,null,null,null,null,0,null,0,null,null,null,0,null,0]
[null,null,null,null,null,{"$f":"SUM(D73*E73)","v":0},null,{"$f":"ROUND(F73*G73/100,2)","v":0},null,null,null,{"$f":"SUM(J73*K73)","v":0},null,{"$f":"ROUND(L73*M73/100,2)","v":0}]
[null,null,null,null,null,0,null,0,null,null,null,0,null,0]
[null,null,null,null,null,0,null,0,null,null,null,0,null,0]
[null,null,null,null,null,0,null,0,null,null,null,0,null,0]
[null,null,null,null,null,0,null,0,null,null,null,0,null,0]
[null,null,null,null,null,0,null,0,null,null,null,0,null,0]
[null,null,null,null,null,0,null,0,null,null,null,0,null,0]
[null,null,null,null,null,0,null,0,null,null,null,0,null,0]
[null,null,null,null,null,0,null,0,null,null,null,0,null,0]
[null,null,null,null,null,0,null,0,null,null,null,0,null,0]
[null,null,null,null,null,0,null,0,null,null,null,0,null,0]
[null,null,null,null,null,0,null,0,null,null,null,0,null,0]
[null,null,null,null,null,0,null,0,null,null,null,0,null,0]
[null,null,null,null,null,0,null,0,null,null,null,0,null,0]
[null,null,null,null,null,0,null,0,null,null,null,0,null,0]
[null,null,null,null,null,0,null,0,null,null,null,0,null,0]
[null,null,null,null,null,0,null,0,null,null,null,0,null,0]
[null,null,null,null,null,0,null,0,null,null,null,0,null,0]
[null,null,null,null,null,0,null,0,null,null,null,0,null,0]
[null,null,null,null,null,0,null,0,null,null,null,0,null,0]
[null,null,null,null,null,0,null,0,null,null,null,0,null,0]
[null,null,null,null,null,0,null,0,null,null,null,0,null,0]
[null,null,null,null,null,0,null,0,null,null,null,0,null,0]
[null,null,null,null,null,0,null,0,null,null,null,0,null,0]
[null,null,null,null,null,0,null,0,null,null,null,0,null,0]
[null,null,null,null,null,0,null,0,null,null,null,0,null,0]
[null,null,null,null,null,0,null,0,null,null,null,0,null,0]
[null,null,null,null,null,0,null,0,null,null,null,0,null,0]
[null,null,null,null,null,0,null,0,null,null,null,0,null,0]
[null,null,null,null,null,0,null,0,null,null,null,0,null,0]
[null,null,null,null,null,0,null,0,null,null,null,0,null,0]
[null,null,null,null,null,0,null,0,null,null,null,0,null,0]
[null,null,null,null,null,0,null,0,null,null,null,0,null,0]
[null,null,null,null,null,0,null,0,null,null,null,0,null,0]
[null,null,null,null,null,0,null,0,null,null,null,0,null,0]
[null,null,null,null,null,0,null,0,null,null,null,0,null,0]
[null,null,null,null,null,0,null,0,null,null,null,0,null,0]
[null,null,null,null,null,0,null,0,null,null,null,0,null,0]
[null,null,null,null,null,0,null,0,null,null,null,0,null,0]
[null,null,null,null,null,0,null,0,null,null,null,0,null,0]
[null,null,null,null,null,0,null,0,null,null,null,0,null,0]
[null,null,null,null,null,0,null,0,null,null,null,0,null,0]
[null,null,null,null,null,0,null,0,null,null,null,0,null,0]
[null,null,null,null,null,0,null,0,null,null,null,0,null,0]
[null,null,null,null,null,0,null,0,null,null,null,0,null,0]
[null,null,null,null,null,0,null,0,null,null,null,0,null,0]
[null,null,null,null,null,0,null,0,null,null,null,0,null,0]
[null,null,null,null,null,0,null,0,null,null,null,0,null,0]
[null,null,null,null,null,0,null,0,null,null,null,0,null,0]
[null,null,null,null,null,0,null,0,null,null,null,0,null,0]
[null,null,null,null,null,0,null,0,null,null,null,0,null,0]
[null,null,null,null,null,0,null,0,null,null,null,0,null,0]
[null,null,null,null,null,0,null,0,null,null,null,{"$f":"SUM(J125*K125)","v":0},null,0]

{"sheet":"7","index":7,"n_rows":125,"n_cols":15,"rows_kept":125,"cut":false,"hidden":false,"merged":[[4,1,5,1],[4,14,5,14],[0,13,0,14],[1,13,1,14]]}
[null,{"$f":"Ricapitolazione!D16","v":0},null,null,"Totale delle entrate",null,{"$f":"SUM(H7:H125)","v":0},"Litri 100%",null,null,null,null,null,"Numero di cliente"]
[null,null,null,null,"Totale delle uscite",null,{"$f":"SUM(N8:N125)","v":0},"Litri 100%",null,null,null,null,null,{"$f":"Ricapitolazione!H3","v":0}]
["Esercizio",{"$f":"Ricapitolazione!I6","v":0},null,null,"Saldo",null,{"$f":"SUM(G1-G2)","v":0},"Litri 100%"]
[]
[null,"In entrata: Produzione / fabbricazione\nIn uscita  : Nome e indirizzo dell'acquirente / utilizzazione\n                   per febbricazione / degustazione / regali",null,null,null,"Entrate",null,null,null,null,null,"Uscite",null,null,"Data della\ndichiarazione per l'imposizione"]
["Data",null,null,"Numero di\nbottiglie","Capacità","litri","% vol.","Litri 100 %",null,"Numero di\nbottiglie","Capacità","Litri","% vol.","Litri 100 %"]
[" ","Stock iniziale / riporto",null,null,null,{"$f":"SUM(D7*E7)","v":0},null,{"$f":"ROUND(F7*G7/100,2)","v":0}]
[null,null,null,null,null,{"$f":"SUM(D8*E8)","v":0},null,{"$f":"ROUND(F8*G8/100,2)","v":0},null,null,null,{"$f":"SUM(J8*K8)","v":0},null,{"$f":"ROUND(L8*M8/100,2)","v":0}]
[null,null,null,null,null,{"$f":"SUM(D9*E9)","v":0},null,{"$f":"ROUND(F9*G9/100,2)","v":0},null,null,null,{"$f":"SUM(J9*K9)","v":0},null,{"$f":"ROUND(L9*M9/100,2)","v":0}]
[null,null,null,null,null,0,null,0,null,null,null,0,null,0]
[null,null,null,null,null,0,null,0,null,null,null,0,null,0]
[null,null,null,null,null,0,null,0,null,null,null,0,null,0]
[null,null,null,null,null,0,null,0,null,null,null,0,null,0]
[null,null,null,null,null,0,null,0,null,null,null,0,null,0]
[null,null,null,null,null,0,null,0,null,null,null,0,null,0]
[null,null,null,null,null,0,null,0,null,null,null,0,null,0]
[null,null,null,null,null,0,null,0,null,null,null,0,null,0]
[null,null,null,null,null,0,null,0,null,null,null,0,null,0]
[null,null,null,null,null,0,null,0,null,null,null,0,null,0]
[null,null,null,null,null,0,null,0,null,null,null,0,null,0]
[null,null,null,null,null,0,null,0,null,null,null,0,null,0]
[null,null,null,null,null,0,null,0,null,null,null,0,null,0]
[null,null,null,null,null,0,null,0,null,null,null,0,null,0]
[null,null,null,null,null,0,null,0,null,null,null,0,null,0]
[null,null,null,null,null,0,null,0,null,null,null,0,null,0]
[null,null,null,null,null,0,null,0,null,null,null,0,null,0]
[null,null,null,null,null,0,null,0,null,null,null,0,null,0]
[null,null,null,null,null,0,null,0,null,null,null,0,null,0]
[null,null,null,null,null,0,null,0,null,null,null,0,null,0]
[null,null,null,null,null,0,null,0,null,null,null,0,null,0]
[null,null,null,null,null,0,null,0,null,null,null,0,null,0]
[null,null,null,null,null,0,null,0,null,null,null,0,null,0]
[null,null,null,null,null,0,null,0,null,null,null,0,null,0]
[null,null,null,null,null,0,null,0,null,null,null,0,null,0]
[null,null,null,null,null,0,null,0,null,null,null,0,null,0]
[null,null,null,null,null,0,null,0,null,null,null,0,null,0]
[null,null,null,null,null,0,null,0,null,null,null,0,null,0]
[null,null,null,null,null,0,null,0,null,null,null,0,null,0]
[null,null,null,null,null,0,null,0,null,null,null,0,null,0]
[null,null,null,null,null,0,null,0,null,null,null,0,null,0]
[null,null,null,null,null,0,null,0,null,null,null,0,null,0]
[null,null,null,null,null,0,null,0,null,null,null,0,null,0]
[null,null,null,null,null,0,null,0,null,null,null,0,null,0]
[null,null,null,null,null,0,null,0,null,null,null,0,null,0]
[null,null,null,null,null,0,null,0,null,null,null,0,null,0]
[null,null,null,null,null,0,null,0,null,null,null,0,null,0]
[null,null,null,null,null,0,null,0,null,null,null,0,null,0]
[null,null,null,null,null,0,null,0,null,null,null,0,null,0]
[null,null,null,null,null,0,null,0,null,null,null,0,null,0]
[null,null,null,null,null,0,null,0,null,null,null,0,null,0]
[null,null,null,null,null,0,null,0,null,null,null,0,null,0]
[null,null,null,null,null,0,null,0,null,null,null,0,null,0]
[null,null,null,null,null,0,null,0,null,null,null,0,null,0]
[null,null,null,null,null,0,null,0,null,null,null,0,null,0]
[null,null,null,null,null,0,null,0,null,null,null,0,null,0]
[null,null,null,null,null,0,null,0,null,null,null,0,null,0]
[null,null,null,null,null,0,null,0,null,null,null,0,null,0]
[null,null,null,null,null,0,null,0,null,null,null,0,null,0]
[null,null,null,null,null,0,null,0,null,null,null,0,null,0]
[null,null,null,null,null,0,null,0,null,null,null,0,null,0]
[null,null,null,null,null,0,null,0,null,null,null,0,null,0]
[null,null,null,null,null,0,null,0,null,null,null,0,null,0]
[null,null,null,null,null,0,null,0,null,null,null,0,null,0]
[null,null,null,null,null,0,null,0,null,null,null,0,null,0]
[null,null,null,null,null,0,null,0,null,null,null,0,null,0]
[null,null,null,null,null,0,null,0,null,null,null,0,null,0]
[null,null,null,null,null,0,null,0,null,null,null,0,null,0]
[null,null,null,null,null,0,null,0,null,null,null,0,null,0]
[null,null,null,null,null,0,null,0,null,null,null,0,null,0]
[null,null,null,null,null,0,null,0,null,null,null,0,null,0]
[null,null,null,null,null,0,null,0,null,null,null,0,null,0]
[null,null,null,null,null,0,null,0,null,null,null,0,null,0]
[null,null,null,null,null,{"$f":"SUM(D73*E73)","v":0},null,{"$f":"ROUND(F73*G73/100,2)","v":0},null,null,null,{"$f":"SUM(J73*K73)","v":0},null,{"$f":"ROUND(L73*M73/100,2)","v":0}]
[null,null,null,null,null,0,null,0,null,null,null,0,null,0]
[null,null,null,null,null,0,null,0,null,null,null,0,null,0]
[null,null,null,null,null,0,null,0,null,null,null,0,null,0]
[null,null,null,null,null,0,null,0,null,null,null,0,null,0]
[null,null,null,null,null,0,null,0,null,null,null,0,null,0]
[null,null,null,null,null,0,null,0,null,null,null,0,null,0]
[null,null,null,null,null,0,null,0,null,null,null,0,null,0]
[null,null,null,null,null,0,null,0,null,null,null,0,null,0]
[null,null,null,null,null,0,null,0,null,null,null,0,null,0]
[null,null,null,null,null,0,null,0,null,null,null,0,null,0]
[null,null,null,null,null,0,null,0,null,null,null,0,null,0]
[null,null,null,null,null,0,null,0,null,null,null,0,null,0]
[null,null,null,null,null,0,null,0,null,null,null,0,null,0]
[null,null,null,null,null,0,null,0,null,null,null,0,null,0]
[null,null,null,null,null,0,null,0,null,null,null,0,null,0]
[null,null,null,null,null,0,null,0,null,null,null,0,null,0]
[null,null,null,null,null,0,null,0,null,null,null,0,null,0]
[null,null,null,null,null,0,null,0,null,null,null,0,null,0]
[null,null,null,null,null,0,null,0,null,null,null,0,null,0]
[null,null,null,null,null,0,null,0,null,null,null,0,null,0]
[null,null,null,null,null,0,null,0,null,null,null,0,null,0]
[null,null,null,null,null,0,null,0,null,null,null,0,null,0]
[null,null,null,null,null,0,null,0,null,null,null,0,null,0]
[null,null,null,null,null,0,null,0,null,null,null,0,null,0]
[null,null,null,null,null,0,null,0,null,null,null,0,null,0]
[null,null,null,null,null,0,null,0,null,null,null,0,null,0]
[null,null,null,null,null,0,null,0,null,null,null,0,null,0]
[null,null,null,null,null,0,null,0,null,null,null,0,null,0]
[null,null,null,null,null,0,null,0,null,null,null,0,null,0]
[null,null,null,null,null,0,null,0,null,null,null,0,null,0]
[null,null,null,null,null,0,null,0,null,null,null,0,null,0]
[null,null,null,null,null,0,null,0,null,null,null,0,null,0]
[null,null,null,null,null,0,null,0,null,null,null,0,null,0]
[null,null,null,null,null,0,null,0,null,null,null,0,null,0]
[null,null,null,null,null,0,null,0,null,null,null,0,null,0]
[null,null,null,null,null,0,null,0,null,null,null,0,null,0]
[null,null,null,null,null,0,null,0,null,null,null,0,null,0]
[null,null,null,null,null,0,null,0,null,null,null,0,null,0]
[null,null,null,null,null,0,null,0,null,null,null,0,null,0]
[null,null,null,null,null,0,null,0,null,null,null,0,null,0]
[null,null,null,null,null,0,null,0,null,null,null,0,null,0]
[null,null,null,null,null,0,null,0,null,null,null,0,null,0]
[null,null,null,null,null,0,null,0,null,null,null,0,null,0]
[null,null,null,null,null,0,null,0,null,null,null,0,null,0]
[null,null,null,null,null,0,null,0,null,null,null,0,null,0]
[null,null,null,null,null,0,null,0,null,null,null,0,null,0]
[null,null,null,null,null,0,null,0,null,null,null,0,null,0]
[null,null,null,null,null,0,null,0,null,null,null,0,null,0]
[null,null,null,null,null,0,null,0,null,null,null,0,null,0]
[null,null,null,null,null,0,null,0,null,null,null,0,null,0]
[null,null,null,null,null,0,null,0,null,null,null,0,null,0]
[null,null,null,null,null,0,null,0,null,null,null,{"$f":"SUM(J125*K125)","v":0},null,0]

{"sheet":"8","index":8,"n_rows":125,"n_cols":15,"rows_kept":125,"cut":false,"hidden":false,"merged":[[4,1,5,1],[4,14,5,14],[0,13,0,14],[1,13,1,14]]}
[null,{"$f":"Ricapitolazione!D17","v":0},null,null,"Totale delle entrate",null,{"$f":"SUM(H7:H125)","v":0},"Litri 100%",null,null,null,null,null,"Numero di cliente"]
[null,null,null,null,"Totale delle uscite",null,{"$f":"SUM(N8:N125)","v":0},"Litri 100%",null,null,null,null,null,{"$f":"Ricapitolazione!H3","v":0}]
["Esercizio",{"$f":"Ricapitolazione!I6","v":0},null,null,"Saldo",null,{"$f":"SUM(G1-G2)","v":0},"Litri 100%"]
[]
[null,"In entrata: Produzione / fabbricazione\nIn uscita  : Nome e indirizzo dell'acquirente / utilizzazione\n                   per febbricazione / degustazione / regali",null,null,null,"Entrate",null,null,null,null,null,"Uscite",null,null,"Data della\ndichiarazione per l'imposizione"]
["Data",null,null,"Numero di\nbottiglie","Capacità","litri","% vol.","Litri 100 %",null,"Numero di\nbottiglie","Capacità","Litri","% vol.","Litri 100 %"]
[" ","Stock iniziale / riporto",null,null,null,{"$f":"SUM(D7*E7)","v":0},null,{"$f":"ROUND(F7*G7/100,2)","v":0}]
[null,null,null,null,null,{"$f":"SUM(D8*E8)","v":0},null,{"$f":"ROUND(F8*G8/100,2)","v":0},null,null,null,{"$f":"SUM(J8*K8)","v":0},null,{"$f":"ROUND(L8*M8/100,2)","v":0}]
[null,null,null,null,null,{"$f":"SUM(D9*E9)","v":0},null,{"$f":"ROUND(F9*G9/100,2)","v":0},null,null,null,{"$f":"SUM(J9*K9)","v":0},null,{"$f":"ROUND(L9*M9/100,2)","v":0}]
[null,null,null,null,null,0,null,0,null,null,null,0,null,0]
[null,null,null,null,null,0,null,0,null,null,null,0,null,0]
[null,null,null,null,null,0,null,0,null,null,null,0,null,0]
[null,null,null,null,null,0,null,0,null,null,null,0,null,0]
[null,null,null,null,null,0,null,0,null,null,null,0,null,0]
[null,null,null,null,null,0,null,0,null,null,null,0,null,0]
[null,null,null,null,null,0,null,0,null,null,null,0,null,0]
[null,null,null,null,null,0,null,0,null,null,null,0,null,0]
[null,null,null,null,null,0,null,0,null,null,null,0,null,0]
[null,null,null,null,null,0,null,0,null,null,null,0,null,0]
[null,null,null,null,null,0,null,0,null,null,null,0,null,0]
[null,null,null,null,null,0,null,0,null,null,null,0,null,0]
[null,null,null,null,null,0,null,0,null,null,null,0,null,0]
[null,null,null,null,null,0,null,0,null,null,null,0,null,0]
[null,null,null,null,null,0,null,0,null,null,null,0,null,0]
[null,null,null,null,null,0,null,0,null,null,null,0,null,0]
[null,null,null,null,null,0,null,0,null,null,null,0,null,0]
[null,null,null,null,null,0,null,0,null,null,null,0,null,0]
[null,null,null,null,null,0,null,0,null,null,null,0,null,0]
[null,null,null,null,null,0,null,0,null,null,null,0,null,0]
[null,null,null,null,null,0,null,0,null,null,null,0,null,0]
[null,null,null,null,null,0,null,0,null,null,null,0,null,0]
[null,null,null,null,null,0,null,0,null,null,null,0,null,0]
[null,null,null,null,null,0,null,0,null,null,null,0,null,0]
[null,null,null,null,null,0,null,0,null,null,null,0,null,0]
[null,null,null,null,null,0,null,0,null,null,null,0,null,0]
[null,null,null,null,null,0,null,0,null,null,null,0,null,0]
[null,null,null,null,null,0,null,0,null,null,null,0,null,0]
[null,null,null,null,null,0,null,0,null,null,null,0,null,0]
[null,null,null,null,null,0,null,0,null,null,null,0,null,0]
[null,null,null,null,null,0,null,0,null,null,null,0,null,0]
[null,null,null,null,null,0,null,0,null,null,null,0,null,0]
[null,null,null,null,null,0,null,0,null,null,null,0,null,0]
[null,null,null,null,null,0,null,0,null,null,null,0,null,0]
[null,null,null,null,null,0,null,0,null,null,null,0,null,0]
[null,null,null,null,null,0,null,0,null,null,null,0,null,0]
[null,null,null,null,null,0,null,0,null,null,null,0,null,0]
[null,null,null,null,null,0,null,0,null,null,null,0,null,0]
[null,null,null,null,null,0,null,0,null,null,null,0,null,0]
[null,null,null,null,null,0,null,0,null,null,null,0,null,0]
[null,null,null,null,null,0,null,0,null,null,null,0,null,0]
[null,null,null,null,null,0,null,0,null,null,null,0,null,0]
[null,null,null,null,null,0,null,0,null,null,null,0,null,0]
[null,null,null,null,null,0,null,0,null,null,null,0,null,0]
[null,null,null,null,null,0,null,0,null,null,null,0,null,0]
[null,null,null,null,null,0,null,0,null,null,null,0,null,0]
[null,null,null,null,null,0,null,0,null,null,null,0,null,0]
[null,null,null,null,null,0,null,0,null,null,null,0,null,0]
[null,null,null,null,null,0,null,0,null,null,null,0,null,0]
[null,null,null,null,null,0,null,0,null,null,null,0,null,0]
[null,null,null,null,null,0,null,0,null,null,null,0,null,0]
[null,null,null,null,null,0,null,0,null,null,null,0,null,0]
[null,null,null,null,null,0,null,0,null,null,null,0,null,0]
[null,null,null,null,null,0,null,0,null,null,null,0,null,0]
[null,null,null,null,null,0,null,0,null,null,null,0,null,0]
[null,null,null,null,null,0,null,0,null,null,null,0,null,0]
[null,null,null,null,null,0,null,0,null,null,null,0,null,0]
[null,null,null,null,null,0,null,0,null,null,null,0,null,0]
[null,null,null,null,null,0,null,0,null,null,null,0,null,0]
[null,null,null,null,null,0,null,0,null,null,null,0,null,0]
[null,null,null,null,null,0,null,0,null,null,null,0,null,0]
[null,null,null,null,null,0,null,0,null,null,null,0,null,0]
[null,null,null,null,null,0,null,0,null,null,null,0,null,0]
[null,null,null,null,null,{"$f":"SUM(D73*E73)","v":0},null,{"$f":"ROUND(F73*G73/100,2)","v":0},null,null,null,{"$f":"SUM(J73*K73)","v":0},null,{"$f":"ROUND(L73*M73/100,2)","v":0}]
[null,null,null,null,null,0,null,0,null,null,null,0,null,0]
[null,null,null,null,null,0,null,0,null,null,null,0,null,0]
[null,null,null,null,null,0,null,0,null,null,null,0,null,0]
[null,null,null,null,null,0,null,0,null,null,null,0,null,0]
[null,null,null,null,null,0,null,0,null,null,null,0,null,0]
[null,null,null,null,null,0,null,0,null,null,null,0,null,0]
[null,null,null,null,null,0,null,0,null,null,null,0,null,0]
[null,null,null,null,null,0,null,0,null,null,null,0,null,0]
[null,null,null,null,null,0,null,0,null,null,null,0,null,0]
[null,null,null,null,null,0,null,0,null,null,null,0,null,0]
[null,null,null,null,null,0,null,0,null,null,null,0,null,0]
[null,null,null,null,null,0,null,0,null,null,null,0,null,0]
[null,null,null,null,null,0,null,0,null,null,null,0,null,0]
[null,null,null,null,null,0,null,0,null,null,null,0,null,0]
[null,null,null,null,null,0,null,0,null,null,null,0,null,0]
[null,null,null,null,null,0,null,0,null,null,null,0,null,0]
[null,null,null,null,null,0,null,0,null,null,null,0,null,0]
[null,null,null,null,null,0,null,0,null,null,null,0,null,0]
[null,null,null,null,null,0,null,0,null,null,null,0,null,0]
[null,null,null,null,null,0,null,0,null,null,null,0,null,0]
[null,null,null,null,null,0,null,0,null,null,null,0,null,0]
[null,null,null,null,null,0,null,0,null,null,null,0,null,0]
[null,null,null,null,null,0,null,0,null,null,null,0,null,0]
[null,null,null,null,null,0,null,0,null,null,null,0,null,0]
[null,null,null,null,null,0,null,0,null,null,null,0,null,0]
[null,null,null,null,null,0,null,0,null,null,null,0,null,0]
[null,null,null,null,null,0,null,0,null,null,null,0,null,0]
[null,null,null,null,null,0,null,0,null,null,null,0,null,0]
[null,null,null,null,null,0,null,0,null,null,null,0,null,0]
[null,null,null,null,null,0,null,0,null,null,null,0,null,0]
[null,null,null,null,null,0,null,0,null,null,null,0,null,0]
[null,null,null,null,null,0,null,0,null,null,null,0,null,0]
[null,null,null,null,null,0,null,0,null,null,null,0,null,0]
[null,null,null,null,null,0,null,0,null,null,null,0,null,0]
[null,null,null,null,null,0,null,0,null,null,null,0,null,0]
[null,null,null,null,null,0,null,0,null,null,null,0,null,0]
[null,null,null,null,null,0,null,0,null,null,null,0,null,0]
[null,null,null,null,null,0,null,0,null,null,null,0,null,0]
[null,null,null,null,null,0,null,0,null,null,null,0,null,0]
[null,null,null,null,null,0,null,0,null,null,null,0,null,0]
[null,null,null,null,null,0,null,0,null,null,null,0,null,0]
[null,null,null,null,null,0,null,0,null,null,null,0,null,0]
[null,null,null,null,null,0,null,0,null,null,null,0,null,0]
[null,null,null,null,null,0,null,0,null,null,null,0,null,0]
[null,null,null,null,null,0,null,0,null,null,null,0,null,0]
[null,null,null,null,null,0,null,0,null,null,null,0,null,0]
[null,null,null,null,null,0,null,0,null,null,null,0,null,0]
[null,null,null,null,null,0,null,0,null,null,null,0,null,0]
[null,null,null,null,null,0,null,0,null,null,null,0,null,0]
[null,null,null,null,null,0,null,0,null,null,null,0,null,0]
[null,null,null,null,null,0,null,0,null,null,null,0,null,0]
[null,null,null,null,null,0,null,0,null,null,null,{"$f":"SUM(J125*K125)","v":0},null,0]

{"sheet":"9","index":9,"n_rows":125,"n_cols":15,"rows_kept":125,"cut":false,"hidden":false,"merged":[[4,1,5,1],[4,14,5,14],[0,13,0,14],[1,13,1,14]]}
[null,{"$f":"Ricapitolazione!D18","v":0},null,null,"Totale delle entrate",null,{"$f":"SUM(H7:H125)","v":0},"Litri 100%",null,null,null,null,null,"Numero di cliente"]
[null,null,null,null,"Totale delle uscite",null,{"$f":"SUM(N8:N125)","v":0},"Litri 100%",null,null,null,null,null,{"$f":"Ricapitolazione!H3","v":0}]
["Esercizio",{"$f":"Ricapitolazione!I6","v":0},null,null,"Saldo",null,{"$f":"SUM(G1-G2)","v":0},"Litri 100%"]
[]
[null,"In entrata: Produzione / fabbricazione\nIn uscita  : Nome e indirizzo dell'acquirente / utilizzazione\n                   per febbricazione / degustazione / regali",null,null,null,"Entrate",null,null,null,null,null,"Uscite",null,null,"Data della\ndichiarazione per l'imposizione"]
["Data",null,null,"Numero di\nbottiglie","Capacità","litri","% vol.","Litri 100 %",null,"Numero di\nbottiglie","Capacità","Litri","% vol.","Litri 100 %"]
[" ","Stock iniziale / riporto",null,null,null,{"$f":"SUM(D7*E7)","v":0},null,{"$f":"ROUND(F7*G7/100,2)","v":0}]
[null,null,null,null,null,{"$f":"SUM(D8*E8)","v":0},null,{"$f":"ROUND(F8*G8/100,2)","v":0},null,null,null,{"$f":"SUM(J8*K8)","v":0},null,{"$f":"ROUND(L8*M8/100,2)","v":0}]
[null,null,null,null,null,{"$f":"SUM(D9*E9)","v":0},null,{"$f":"ROUND(F9*G9/100,2)","v":0},null,null,null,{"$f":"SUM(J9*K9)","v":0},null,{"$f":"ROUND(L9*M9/100,2)","v":0}]
[null,null,null,null,null,0,null,0,null,null,null,0,null,0]
[null,null,null,null,null,0,null,0,null,null,null,0,null,0]
[null,null,null,null,null,0,null,0,null,null,null,0,null,0]
[null,null,null,null,null,0,null,0,null,null,null,0,null,0]
[null,null,null,null,null,0,null,0,null,null,null,0,null,0]
[null,null,null,null,null,0,null,0,null,null,null,0,null,0]
[null,null,null,null,null,0,null,0,null,null,null,0,null,0]
[null,null,null,null,null,0,null,0,null,null,null,0,null,0]
[null,null,null,null,null,0,null,0,null,null,null,0,null,0]
[null,null,null,null,null,0,null,0,null,null,null,0,null,0]
[null,null,null,null,null,0,null,0,null,null,null,0,null,0]
[null,null,null,null,null,0,null,0,null,null,null,0,null,0]
[null,null,null,null,null,0,null,0,null,null,null,0,null,0]
[null,null,null,null,null,0,null,0,null,null,null,0,null,0]
[null,null,null,null,null,0,null,0,null,null,null,0,null,0]
[null,null,null,null,null,0,null,0,null,null,null,0,null,0]
[null,null,null,null,null,0,null,0,null,null,null,0,null,0]
[null,null,null,null,null,0,null,0,null,null,null,0,null,0]
[null,null,null,null,null,0,null,0,null,null,null,0,null,0]
[null,null,null,null,null,0,null,0,null,null,null,0,null,0]
[null,null,null,null,null,0,null,0,null,null,null,0,null,0]
[null,null,null,null,null,0,null,0,null,null,null,0,null,0]
[null,null,null,null,null,0,null,0,null,null,null,0,null,0]
[null,null,null,null,null,0,null,0,null,null,null,0,null,0]
[null,null,null,null,null,0,null,0,null,null,null,0,null,0]
[null,null,null,null,null,0,null,0,null,null,null,0,null,0]
[null,null,null,null,null,0,null,0,null,null,null,0,null,0]
[null,null,null,null,null,0,null,0,null,null,null,0,null,0]
[null,null,null,null,null,0,null,0,null,null,null,0,null,0]
[null,null,null,null,null,0,null,0,null,null,null,0,null,0]
[null,null,null,null,null,0,null,0,null,null,null,0,null,0]
[null,null,null,null,null,0,null,0,null,null,null,0,null,0]
[null,null,null,null,null,0,null,0,null,null,null,0,null,0]
[null,null,null,null,null,0,null,0,null,null,null,0,null,0]
[null,null,null,null,null,0,null,0,null,null,null,0,null,0]
[null,null,null,null,null,0,null,0,null,null,null,0,null,0]
[null,null,null,null,null,0,null,0,null,null,null,0,null,0]
[null,null,null,null,null,0,null,0,null,null,null,0,null,0]
[null,null,null,null,null,0,null,0,null,null,null,0,null,0]
[null,null,null,null,null,0,null,0,null,null,null,0,null,0]
[null,null,null,null,null,0,null,0,null,null,null,0,null,0]
[null,null,null,null,null,0,null,0,null,null,null,0,null,0]
[null,null,null,null,null,0,null,0,null,null,null,0,null,0]
[null,null,null,null,null,0,null,0,null,null,null,0,null,0]
[null,null,null,null,null,0,null,0,null,null,null,0,null,0]
[null,null,null,null,null,0,null,0,null,null,null,0,null,0]
[null,null,null,null,null,0,null,0,null,null,null,0,null,0]
[null,null,null,null,null,0,null,0,null,null,null,0,null,0]
[null,null,null,null,null,0,null,0,null,null,null,0,null,0]
[null,null,null,null,null,0,null,0,null,null,null,0,null,0]
[null,null,null,null,null,0,null,0,null,null,null,0,null,0]
[null,null,null,null,null,0,null,0,null,null,null,0,null,0]
[null,null,null,null,null,0,null,0,null,null,null,0,null,0]
[null,null,null,null,null,0,null,0,null,null,null,0,null,0]
[null,null,null,null,null,0,null,0,null,null,null,0,null,0]
[null,null,null,null,null,0,null,0,null,null,null,0,null,0]
[null,null,null,null,null,0,null,0,null,null,null,0,null,0]
[null,null,null,null,null,0,null,0,null,null,null,0,null,0]
[null,null,null,null,null,0,null,0,null,null,null,0,null,0]
[null,null,null,null,null,0,null,0,null,null,null,0,null,0]
[null,null,null,null,null,0,null,0,null,null,null,0,null,0]
[null,null,null,null,null,0,null,0,null,null,null,0,null,0]
[null,null,null,null,null,0,null,0,null,null,null,0,null,0]
[null,null,null,null,null,{"$f":"SUM(D73*E73)","v":0},null,{"$f":"ROUND(F73*G73/100,2)","v":0},null,null,null,{"$f":"SUM(J73*K73)","v":0},null,{"$f":"ROUND(L73*M73/100,2)","v":0}]
[null,null,null,null,null,0,null,0,null,null,null,0,null,0]
[null,null,null,null,null,0,null,0,null,null,null,0,null,0]
[null,null,null,null,null,0,null,0,null,null,null,0,null,0]
[null,null,null,null,null,0,null,0,null,null,null,0,null,0]
[null,null,null,null,null,0,null,0,null,null,null,0,null,0]
[null,null,null,null,null,0,null,0,null,null,null,0,null,0]
[null,null,null,null,null,0,null,0,null,null,null,0,null,0]
[null,null,null,null,null,0,null,0,null,null,null,0,null,0]
[null,null,null,null,null,0,null,0,null,null,null,0,null,0]
[null,null,null,null,null,0,null,0,null,null,null,0,null,0]
[null,null,null,null,null,0,null,0,null,null,null,0,null,0]
[null,null,null,null,null,0,null,0,null,null,null,0,null,0]
[null,null,null,null,null,0,null,0,null,null,null,0,null,0]
[null,null,null,null,null,0,null,0,null,null,null,0,null,0]
[null,null,null,null,null,0,null,0,null,null,null,0,null,0]
[null,null,null,null,null,0,null,0,null,null,null,0,null,0]
[null,null,null,null,null,0,null,0,null,null,null,0,null,0]
[null,null,null,null,null,0,null,0,null,null,null,0,null,0]
[null,null,null,null,null,0,null,0,null,null,null,0,null,0]
[null,null,null,null,null,0,null,0,null,null,null,0,null,0]
[null,null,null,null,null,0,null,0,null,null,null,0,null,0]
[null,null,null,null,null,0,null,0,null,null,null,0,null,0]
[null,null,null,null,null,0,null,0,null,null,null,0,null,0]
[null,null,null,null,null,0,null,0,null,null,null,0,null,0]
[null,null,null,null,null,0,null,0,null,null,null,0,null,0]
[null,null,null,null,null,0,null,0,null,null,null,0,null,0]
[null,null,null,null,null,0,null,0,null,null,null,0,null,0]
[null,null,null,null,null,0,null,0,null,null,null,0,null,0]
[null,null,null,null,null,0,null,0,null,null,null,0,null,0]
[null,null,null,null,null,0,null,0,null,null,null,0,null,0]
[null,null,null,null,null,0,null,0,null,null,null,0,null,0]
[null,null,null,null,null,0,null,0,null,null,null,0,null,0]
[null,null,null,null,null,0,null,0,null,null,null,0,null,0]
[null,null,null,null,null,0,null,0,null,null,null,0,null,0]
[null,null,null,null,null,0,null,0,null,null,null,0,null,0]
[null,null,null,null,null,0,null,0,null,null,null,0,null,0]
[null,null,null,null,null,0,null,0,null,null,null,0,null,0]
[null,null,null,null,null,0,null,0,null,null,null,0,null,0]
[null,null,null,null,null,0,null,0,null,null,null,0,null,0]
[null,null,null,null,null,0,null,0,null,null,null,0,null,0]
[null,null,null,null,null,0,null,0,null,null,null,0,null,0]
[null,null,null,null,null,0,null,0,null,null,null,0,null,0]
[null,null,null,null,null,0,null,0,null,null,null,0,null,0]
[null,null,null,null,null,0,null,0,null,null,null,0,null,0]
[null,null,null,null,null,0,null,0,null,null,null,0,null,0]
[null,null,null,null,null,0,null,0,null,null,null,0,null,0]
[null,null,null,null,null,0,null,0,null,null,null,0,null,0]
[null,null,null,null,null,0,null,0,null,null,null,0,null,0]
[null,null,null,null,null,0,null,0,null,null,null,0,null,0]
[null,null,null,null,null,0,null,0,null,null,null,0,null,0]
[null,null,null,null,null,0,null,0,null,null,null,0,null,0]
[null,null,null,null,null,0,null,0,null,null,null,{"$f":"SUM(J125*K125)","v":0},null,0]

{"sheet":"10","index":10,"n_rows":125,"n_cols":15,"rows_kept":125,"cut":false,"hidden":false,"merged":[[4,1,5,1],[4,14,5,14],[0,13,0,14],[1,13,1,14]]}
[null,{"$f":"Ricapitolazione!D19","v":0},null,null,"Totale delle entrate",null,{"$f":"SUM(H7:H125)","v":0},"Litri 100%",null,null,null,null,null,"Numero di cliente"]
[null,null,null,null,"Totale delle uscite",null,{"$f":"SUM(N8:N125)","v":0},"Litri 100%",null,null,null,null,null,{"$f":"Ricapitolazione!H3","v":0}]
["Esercizio",{"$f":"Ricapitolazione!I6","v":0},null,null,"Saldo",null,{"$f":"SUM(G1-G2)","v":0},"Litri 100%"]
[]
[null,"In entrata: Produzione / fabbricazione\nIn uscita  : Nome e indirizzo dell'acquirente / utilizzazione\n                   per febbricazione / degustazione / regali",null,null,null,"Entrate",null,null,null,null,null,"Uscite",null,null,"Data della\ndichiarazione per l'imposizione"]
["Data",null,null,"Numero di\nbottiglie","Capacità","litri","% vol.","Litri 100 %",null,"Numero di\nbottiglie","Capacità","Litri","% vol.","Litri 100 %"]
[" ","Stock iniziale / riporto",null,null,null,{"$f":"SUM(D7*E7)","v":0},null,{"$f":"ROUND(F7*G7/100,2)","v":0}]
[null,null,null,null,null,{"$f":"SUM(D8*E8)","v":0},null,{"$f":"ROUND(F8*G8/100,2)","v":0},null,null,null,{"$f":"SUM(J8*K8)","v":0},null,{"$f":"ROUND(L8*M8/100,2)","v":0}]
[null,null,null,null,null,{"$f":"SUM(D9*E9)","v":0},null,{"$f":"ROUND(F9*G9/100,2)","v":0},null,null,null,{"$f":"SUM(J9*K9)","v":0},null,{"$f":"ROUND(L9*M9/100,2)","v":0}]
[null,null,null,null,null,0,null,0,null,null,null,0,null,0]
[null,null,null,null,null,0,null,0,null,null,null,0,null,0]
[null,null,null,null,null,0,null,0,null,null,null,0,null,0]
[null,null,null,null,null,0,null,0,null,null,null,0,null,0]
[null,null,null,null,null,0,null,0,null,null,null,0,null,0]
[null,null,null,null,null,0,null,0,null,null,null,0,null,0]
[null,null,null,null,null,0,null,0,null,null,null,0,null,0]
[null,null,null,null,null,0,null,0,null,null,null,0,null,0]
[null,null,null,null,null,0,null,0,null,null,null,0,null,0]
[null,null,null,null,null,0,null,0,null,null,null,0,null,0]
[null,null,null,null,null,0,null,0,null,null,null,0,null,0]
[null,null,null,null,null,0,null,0,null,null,null,0,null,0]
[null,null,null,null,null,0,null,0,null,null,null,0,null,0]
[null,null,null,null,null,0,null,0,null,null,null,0,null,0]
[null,null,null,null,null,0,null,0,null,null,null,0,null,0]
[null,null,null,null,null,0,null,0,null,null,null,0,null,0]
[null,null,null,null,null,0,null,0,null,null,null,0,null,0]
[null,null,null,null,null,0,null,0,null,null,null,0,null,0]
[null,null,null,null,null,0,null,0,null,null,null,0,null,0]
[null,null,null,null,null,0,null,0,null,null,null,0,null,0]
[null,null,null,null,null,0,null,0,null,null,null,0,null,0]
[null,null,null,null,null,0,null,0,null,null,null,0,null,0]
[null,null,null,null,null,0,null,0,null,null,null,0,null,0]
[null,null,null,null,null,0,null,0,null,null,null,0,null,0]
[null,null,null,null,null,0,null,0,null,null,null,0,null,0]
[null,null,null,null,null,0,null,0,null,null,null,0,null,0]
[null,null,null,null,null,0,null,0,null,null,null,0,null,0]
[null,null,null,null,null,0,null,0,null,null,null,0,null,0]
[null,null,null,null,null,0,null,0,null,null,null,0,null,0]
[null,null,null,null,null,0,null,0,null,null,null,0,null,0]
[null,null,null,null,null,0,null,0,null,null,null,0,null,0]
[null,null,null,null,null,0,null,0,null,null,null,0,null,0]
[null,null,null,null,null,0,null,0,null,null,null,0,null,0]
[null,null,null,null,null,0,null,0,null,null,null,0,null,0]
[null,null,null,null,null,0,null,0,null,null,null,0,null,0]
[null,null,null,null,null,0,null,0,null,null,null,0,null,0]
[null,null,null,null,null,0,null,0,null,null,null,0,null,0]
[null,null,null,null,null,0,null,0,null,null,null,0,null,0]
[null,null,null,null,null,0,null,0,null,null,null,0,null,0]
[null,null,null,null,null,0,null,0,null,null,null,0,null,0]
[null,null,null,null,null,0,null,0,null,null,null,0,null,0]
[null,null,null,null,null,0,null,0,null,null,null,0,null,0]
[null,null,null,null,null,0,null,0,null,null,null,0,null,0]
[null,null,null,null,null,0,null,0,null,null,null,0,null,0]
[null,null,null,null,null,0,null,0,null,null,null,0,null,0]
[null,null,null,null,null,0,null,0,null,null,null,0,null,0]
[null,null,null,null,null,0,null,0,null,null,null,0,null,0]
[null,null,null,null,null,0,null,0,null,null,null,0,null,0]
[null,null,null,null,null,0,null,0,null,null,null,0,null,0]
[null,null,null,null,null,0,null,0,null,null,null,0,null,0]
[null,null,null,null,null,0,null,0,null,null,null,0,null,0]
[null,null,null,null,null,0,null,0,null,null,null,0,null,0]
[null,null,null,null,null,0,null,0,null,null,null,0,null,0]
[null,null,null,null,null,0,null,0,null,null,null,0,null,0]
[null,null,null,null,null,0,null,0,null,null,null,0,null,0]
[null,null,null,null,null,0,null,0,null,null,null,0,null,0]
[null,null,null,null,null,0,null,0,null,null,null,0,null,0]
[null,null,null,null,null,0,null,0,null,null,null,0,null,0]
[null,null,null,null,null,0,null,0,null,null,null,0,null,0]
[null,null,null,null,null,0,null,0,null,null,null,0,null,0]
[null,null,null,null,null,0,null,0,null,null,null,0,null,0]
[null,null,null,null,null,0,null,0,null,null,null,0,null,0]
[null,null,null,null,null,0,null,0,null,null,null,0,null,0]
[null,null,null,null,null,{"$f":"SUM(D73*E73)","v":0},null,{"$f":"ROUND(F73*G73/100,2)","v":0},null,null,null,{"$f":"SUM(J73*K73)","v":0},null,{"$f":"ROUND(L73*M73/100,2)","v":0}]
[null,null,null,null,null,0,null,0,null,null,null,0,null,0]
[null,null,null,null,null,0,null,0,null,null,null,0,null,0]
[null,null,null,null,null,0,null,0,null,null,null,0,null,0]
[null,null,null,null,null,0,null,0,null,null,null,0,null,0]
[null,null,null,null,null,0,null,0,null,null,null,0,null,0]
[null,null,null,null,null,0,null,0,null,null,null,0,null,0]
[null,null,null,null,null,0,null,0,null,null,null,0,null,0]
[null,null,null,null,null,0,null,0,null,null,null,0,null,0]
[null,null,null,null,null,0,null,0,null,null,null,0,null,0]
[null,null,null,null,null,0,null,0,null,null,null,0,null,0]
[null,null,null,null,null,0,null,0,null,null,null,0,null,0]
[null,null,null,null,null,0,null,0,null,null,null,0,null,0]
[null,null,null,null,null,0,null,0,null,null,null,0,null,0]
[null,null,null,null,null,0,null,0,null,null,null,0,null,0]
[null,null,null,null,null,0,null,0,null,null,null,0,null,0]
[null,null,null,null,null,0,null,0,null,null,null,0,null,0]
[null,null,null,null,null,0,null,0,null,null,null,0,null,0]
[null,null,null,null,null,0,null,0,null,null,null,0,null,0]
[null,null,null,null,null,0,null,0,null,null,null,0,null,0]
[null,null,null,null,null,0,null,0,null,null,null,0,null,0]
[null,null,null,null,null,0,null,0,null,null,null,0,null,0]
[null,null,null,null,null,0,null,0,null,null,null,0,null,0]
[null,null,null,null,null,0,null,0,null,null,null,0,null,0]
[null,null,null,null,null,0,null,0,null,null,null,0,null,0]
[null,null,null,null,null,0,null,0,null,null,null,0,null,0]
[null,null,null,null,null,0,null,0,null,null,null,0,null,0]
[null,null,null,null,null,0,null,0,null,null,null,0,null,0]
[null,null,null,null,null,0,null,0,null,null,null,0,null,0]
[null,null,null,null,null,0,null,0,null,null,null,0,null,0]
[null,null,null,null,null,0,null,0,null,null,null,0,null,0]
[null,null,null,null,null,0,null,0,null,null,null,0,null,0]
[null,null,null,null,null,0,null,0,null,null,null,0,null,0]
[null,null,null,null,null,0,null,0,null,null,null,0,null,0]
[null,null,null,null,null,0,null,0,null,null,null,0,null,0]
[null,null,null,null,null,0,null,0,null,null,null,0,null,0]
[null,null,null,null,null,0,null,0,null,null,null,0,null,0]
[null,null,null,null,null,0,null,0,null,null,null,0,null,0]
[null,null,null,null,null,0,null,0,null,null,null,0,null,0]
[null,null,null,null,null,0,null,0,null,null,null,0,null,0]
[null,null,null,null,null,0,null,0,null,null,null,0,null,0]
[null,null,null,null,null,0,null,0,null,null,null,0,null,0]
[null,null,null,null,null,0,null,0,null,null,null,0,null,0]
[null,null,null,null,null,0,null,0,null,null,null,0,null,0]
[null,null,null,null,null,0,null,0,null,null,null,0,null,0]
[null,null,null,null,null,0,null,0,null,null,null,0,null,0]
[null,null,null,null,null,0,null,0,null,null,null,0,null,0]
[null,null,null,null,null,0,null,0,null,null,null,0,null,0]
[null,null,null,null,null,0,null,0,null,null,null,0,null,0]
[null,null,null,null,null,0,null,0,null,null,null,0,null,0]
[null,null,null,null,null,0,null,0,null,null,null,0,null,0]
[null,null,null,null,null,0,null,0,null,null,null,0,null,0]
[null,null,null,null,null,0,null,0,null,null,null,{"$f":"SUM(J125*K125)","v":0},null,0]

{"sheet":"11","index":11,"n_rows":125,"n_cols":15,"rows_kept":125,"cut":false,"hidden":false,"merged":[[4,1,5,1],[4,14,5,14],[0,13,0,14],[1,13,1,14]]}
[null,{"$f":"Ricapitolazione!D20","v":0},null,null,"Totale delle entrate",null,{"$f":"SUM(H7:H125)","v":0},"Litri 100%",null,null,null,null,null,"Numero di cliente"]
[null,null,null,null,"Totale delle uscite",null,{"$f":"SUM(N8:N125)","v":0},"Litri 100%",null,null,null,null,null,{"$f":"Ricapitolazione!H3","v":0}]
["Esercizio",{"$f":"Ricapitolazione!I6","v":0},null,null,"Saldo",null,{"$f":"SUM(G1-G2)","v":0},"Litri 100%"]
[]
[null,"In entrata: Produzione / fabbricazione\nIn uscita  : Nome e indirizzo dell'acquirente / utilizzazione\n                   per febbricazione / degustazione / regali",null,null,null,"Entrate",null,null,null,null,null,"Uscite",null,null,"Data della\ndichiarazione per l'imposizione"]
["Data",null,null,"Numero di\nbottiglie","Capacità","litri","% vol.","Litri 100 %",null,"Numero di\nbottiglie","Capacità","Litri","% vol.","Litri 100 %"]
[" ","Stock iniziale / riporto",null,null,null,{"$f":"SUM(D7*E7)","v":0},null,{"$f":"ROUND(F7*G7/100,2)","v":0}]
[null,null,null,null,null,{"$f":"SUM(D8*E8)","v":0},null,{"$f":"ROUND(F8*G8/100,2)","v":0},null,null,null,{"$f":"SUM(J8*K8)","v":0},null,{"$f":"ROUND(L8*M8/100,2)","v":0}]
[null,null,null,null,null,{"$f":"SUM(D9*E9)","v":0},null,{"$f":"ROUND(F9*G9/100,2)","v":0},null,null,null,{"$f":"SUM(J9*K9)","v":0},null,{"$f":"ROUND(L9*M9/100,2)","v":0}]
[null,null,null,null,null,0,null,0,null,null,null,0,null,0]
[null,null,null,null,null,0,null,0,null,null,null,0,null,0]
[null,null,null,null,null,0,null,0,null,null,null,0,null,0]
[null,null,null,null,null,0,null,0,null,null,null,0,null,0]
[null,null,null,null,null,0,null,0,null,null,null,0,null,0]
[null,null,null,null,null,0,null,0,null,null,null,0,null,0]
[null,null,null,null,null,0,null,0,null,null,null,0,null,0]
[null,null,null,null,null,0,null,0,null,null,null,0,null,0]
[null,null,null,null,null,0,null,0,null,null,null,0,null,0]
[null,null,null,null,null,0,null,0,null,null,null,0,null,0]
[null,null,null,null,null,0,null,0,null,null,null,0,null,0]
[null,null,null,null,null,0,null,0,null,null,null,0,null,0]
[null,null,null,null,null,0,null,0,null,null,null,0,null,0]
[null,null,null,null,null,0,null,0,null,null,null,0,null,0]
[null,null,null,null,null,0,null,0,null,null,null,0,null,0]
[null,null,null,null,null,0,null,0,null,null,null,0,null,0]
[null,null,null,null,null,0,null,0,null,null,null,0,null,0]
[null,null,null,null,null,0,null,0,null,null,null,0,null,0]
[null,null,null,null,null,0,null,0,null,null,null,0,null,0]
[null,null,null,null,null,0,null,0,null,null,null,0,null,0]
[null,null,null,null,null,0,null,0,null,null,null,0,null,0]
[null,null,null,null,null,0,null,0,null,null,null,0,null,0]
[null,null,null,null,null,0,null,0,null,null,null,0,null,0]
[null,null,null,null,null,0,null,0,null,null,null,0,null,0]
[null,null,null,null,null,0,null,0,null,null,null,0,null,0]
[null,null,null,null,null,0,null,0,null,null,null,0,null,0]
[null,null,null,null,null,0,null,0,null,null,null,0,null,0]
[null,null,null,null,null,0,null,0,null,null,null,0,null,0]
[null,null,null,null,null,0,null,0,null,null,null,0,null,0]
[null,null,null,null,null,0,null,0,null,null,null,0,null,0]
[null,null,null,null,null,0,null,0,null,null,null,0,null,0]
[null,null,null,null,null,0,null,0,null,null,null,0,null,0]
[null,null,null,null,null,0,null,0,null,null,null,0,null,0]
[null,null,null,null,null,0,null,0,null,null,null,0,null,0]
[null,null,null,null,null,0,null,0,null,null,null,0,null,0]
[null,null,null,null,null,0,null,0,null,null,null,0,null,0]
[null,null,null,null,null,0,null,0,null,null,null,0,null,0]
[null,null,null,null,null,0,null,0,null,null,null,0,null,0]
[null,null,null,null,null,0,null,0,null,null,null,0,null,0]
[null,null,null,null,null,0,null,0,null,null,null,0,null,0]
[null,null,null,null,null,0,null,0,null,null,null,0,null,0]
[null,null,null,null,null,0,null,0,null,null,null,0,null,0]
[null,null,null,null,null,0,null,0,null,null,null,0,null,0]
[null,null,null,null,null,0,null,0,null,null,null,0,null,0]
[null,null,null,null,null,0,null,0,null,null,null,0,null,0]
[null,null,null,null,null,0,null,0,null,null,null,0,null,0]
[null,null,null,null,null,0,null,0,null,null,null,0,null,0]
[null,null,null,null,null,0,null,0,null,null,null,0,null,0]
[null,null,null,null,null,0,null,0,null,null,null,0,null,0]
[null,null,null,null,null,0,null,0,null,null,null,0,null,0]
[null,null,null,null,null,0,null,0,null,null,null,0,null,0]
[null,null,null,null,null,0,null,0,null,null,null,0,null,0]
[null,null,null,null,null,0,null,0,null,null,null,0,null,0]
[null,null,null,null,null,0,null,0,null,null,null,0,null,0]
[null,null,null,null,null,0,null,0,null,null,null,0,null,0]
[null,null,null,null,null,0,null,0,null,null,null,0,null,0]
[null,null,null,null,null,0,null,0,null,null,null,0,null,0]
[null,null,null,null,null,0,null,0,null,null,null,0,null,0]
[null,null,null,null,null,0,null,0,null,null,null,0,null,0]
[null,null,null,null,null,0,null,0,null,null,null,0,null,0]
[null,null,null,null,null,0,null,0,null,null,null,0,null,0]
[null,null,null,null,null,0,null,0,null,null,null,0,null,0]
[null,null,null,null,null,0,null,0,null,null,null,0,null,0]
[null,null,null,null,null,{"$f":"SUM(D73*E73)","v":0},null,{"$f":"ROUND(F73*G73/100,2)","v":0},null,null,null,{"$f":"SUM(J73*K73)","v":0},null,{"$f":"ROUND(L73*M73/100,2)","v":0}]
[null,null,null,null,null,0,null,0,null,null,null,0,null,0]
[null,null,null,null,null,0,null,0,null,null,null,0,null,0]
[null,null,null,null,null,0,null,0,null,null,null,0,null,0]
[null,null,null,null,null,0,null,0,null,null,null,0,null,0]
[null,null,null,null,null,0,null,0,null,null,null,0,null,0]
[null,null,null,null,null,0,null,0,null,null,null,0,null,0]
[null,null,null,null,null,0,null,0,null,null,null,0,null,0]
[null,null,null,null,null,0,null,0,null,null,null,0,null,0]
[null,null,null,null,null,0,null,0,null,null,null,0,null,0]
[null,null,null,null,null,0,null,0,null,null,null,0,null,0]
[null,null,null,null,null,0,null,0,null,null,null,0,null,0]
[null,null,null,null,null,0,null,0,null,null,null,0,null,0]
[null,null,null,null,null,0,null,0,null,null,null,0,null,0]
[null,null,null,null,null,0,null,0,null,null,null,0,null,0]
[null,null,null,null,null,0,null,0,null,null,null,0,null,0]
[null,null,null,null,null,0,null,0,null,null,null,0,null,0]
[null,null,null,null,null,0,null,0,null,null,null,0,null,0]
[null,null,null,null,null,0,null,0,null,null,null,0,null,0]
[null,null,null,null,null,0,null,0,null,null,null,0,null,0]
[null,null,null,null,null,0,null,0,null,null,null,0,null,0]
[null,null,null,null,null,0,null,0,null,null,null,0,null,0]
[null,null,null,null,null,0,null,0,null,null,null,0,null,0]
[null,null,null,null,null,0,null,0,null,null,null,0,null,0]
[null,null,null,null,null,0,null,0,null,null,null,0,null,0]
[null,null,null,null,null,0,null,0,null,null,null,0,null,0]
[null,null,null,null,null,0,null,0,null,null,null,0,null,0]
[null,null,null,null,null,0,null,0,null,null,null,0,null,0]
[null,null,null,null,null,0,null,0,null,null,null,0,null,0]
[null,null,null,null,null,0,null,0,null,null,null,0,null,0]
[null,null,null,null,null,0,null,0,null,null,null,0,null,0]
[null,null,null,null,null,0,null,0,null,null,null,0,null,0]
[null,null,null,null,null,0,null,0,null,null,null,0,null,0]
[null,null,null,null,null,0,null,0,null,null,null,0,null,0]
[null,null,null,null,null,0,null,0,null,null,null,0,null,0]
[null,null,null,null,null,0,null,0,null,null,null,0,null,0]
[null,null,null,null,null,0,null,0,null,null,null,0,null,0]
[null,null,null,null,null,0,null,0,null,null,null,0,null,0]
[null,null,null,null,null,0,null,0,null,null,null,0,null,0]
[null,null,null,null,null,0,null,0,null,null,null,0,null,0]
[null,null,null,null,null,0,null,0,null,null,null,0,null,0]
[null,null,null,null,null,0,null,0,null,null,null,0,null,0]
[null,null,null,null,null,0,null,0,null,null,null,0,null,0]
[null,null,null,null,null,0,null,0,null,null,null,0,null,0]
[null,null,null,null,null,0,null,0,null,null,null,0,null,0]
[null,null,null,null,null,0,null,0,null,null,null,0,null,0]
[null,null,null,null,null,0,null,0,null,null,null,0,null,0]
[null,null,null,null,null,0,null,0,null,null,null,0,null,0]
[null,null,null,null,null,0,null,0,null,null,null,0,null,0]
[null,null,null,null,null,0,null,0,null,null,null,0,null,0]
[null,null,null,null,null,0,null,0,null,null,null,0,null,0]
[null,null,null,null,null,0,null,0,null,null,null,0,null,0]
[null,null,null,null,null,0,null,0,null,null,null,{"$f":"SUM(J125*K125)","v":0},null,0]

{"sheet":"12","index":12,"n_rows":125,"n_cols":15,"rows_kept":125,"cut":false,"hidden":false,"merged":[[4,1,5,1],[4,14,5,14],[0,13,0,14],[1,13,1,14]]}
[null,{"$f":"Ricapitolazione!D21","v":0},null,null,"Totale delle entrate",null,{"$f":"SUM(H7:H125)","v":0},"Litri 100%",null,null,null,null,null,"Numero di cliente"]
[null,null,null,null,"Totale delle uscite",null,{"$f":"SUM(N8:N125)","v":0},"Litri 100%",null,null,null,null,null,{"$f":"Ricapitolazione!H3","v":0}]
["Esercizio",{"$f":"Ricapitolazione!I6","v":0},null,null,"Saldo",null,{"$f":"SUM(G1-G2)","v":0},"Litri 100%"]
[]
[null,"In entrata: Produzione / fabbricazione\nIn uscita  : Nome e indirizzo dell'acquirente / utilizzazione\n                   per febbricazione / degustazione / regali",null,null,null,"Entrate",null,null,null,null,null,"Uscite",null,null,"Data della\ndichiarazione per l'imposizione"]
["Data",null,null,"Numero di\nbottiglie","Capacità","litri","% vol.","Litri 100 %",null,"Numero di\nbottiglie","Capacità","Litri","% vol.","Litri 100 %"]
[" ","Stock iniziale / riporto",null,null,null,{"$f":"SUM(D7*E7)","v":0},null,{"$f":"ROUND(F7*G7/100,2)","v":0}]
[null,null,null,null,null,{"$f":"SUM(D8*E8)","v":0},null,{"$f":"ROUND(F8*G8/100,2)","v":0},null,null,null,{"$f":"SUM(J8*K8)","v":0},null,{"$f":"ROUND(L8*M8/100,2)","v":0}]
[null,null,null,null,null,{"$f":"SUM(D9*E9)","v":0},null,{"$f":"ROUND(F9*G9/100,2)","v":0},null,null,null,{"$f":"SUM(J9*K9)","v":0},null,{"$f":"ROUND(L9*M9/100,2)","v":0}]
[null,null,null,null,null,0,null,0,null,null,null,0,null,0]
[null,null,null,null,null,0,null,0,null,null,null,0,null,0]
[null,null,null,null,null,0,null,0,null,null,null,0,null,0]
[null,null,null,null,null,0,null,0,null,null,null,0,null,0]
[null,null,null,null,null,0,null,0,null,null,null,0,null,0]
[null,null,null,null,null,0,null,0,null,null,null,0,null,0]
[null,null,null,null,null,0,null,0,null,null,null,0,null,0]
[null,null,null,null,null,0,null,0,null,null,null,0,null,0]
[null,null,null,null,null,0,null,0,null,null,null,0,null,0]
[null,null,null,null,null,0,null,0,null,null,null,0,null,0]
[null,null,null,null,null,0,null,0,null,null,null,0,null,0]
[null,null,null,null,null,0,null,0,null,null,null,0,null,0]
[null,null,null,null,null,0,null,0,null,null,null,0,null,0]
[null,null,null,null,null,0,null,0,null,null,null,0,null,0]
[null,null,null,null,null,0,null,0,null,null,null,0,null,0]
[null,null,null,null,null,0,null,0,null,null,null,0,null,0]
[null,null,null,null,null,0,null,0,null,null,null,0,null,0]
[null,null,null,null,null,0,null,0,null,null,null,0,null,0]
[null,null,null,null,null,0,null,0,null,null,null,0,null,0]
[null,null,null,null,null,0,null,0,null,null,null,0,null,0]
[null,null,null,null,null,0,null,0,null,null,null,0,null,0]
[null,null,null,null,null,0,null,0,null,null,null,0,null,0]
[null,null,null,null,null,0,null,0,null,null,null,0,null,0]
[null,null,null,null,null,0,null,0,null,null,null,0,null,0]
[null,null,null,null,null,0,null,0,null,null,null,0,null,0]
[null,null,null,null,null,0,null,0,null,null,null,0,null,0]
[null,null,null,null,null,0,null,0,null,null,null,0,null,0]
[null,null,null,null,null,0,null,0,null,null,null,0,null,0]
[null,null,null,null,null,0,null,0,null,null,null,0,null,0]
[null,null,null,null,null,0,null,0,null,null,null,0,null,0]
[null,null,null,null,null,0,null,0,null,null,null,0,null,0]
[null,null,null,null,null,0,null,0,null,null,null,0,null,0]
[null,null,null,null,null,0,null,0,null,null,null,0,null,0]
[null,null,null,null,null,0,null,0,null,null,null,0,null,0]
[null,null,null,null,null,0,null,0,null,null,null,0,null,0]
[null,null,null,null,null,0,null,0,null,null,null,0,null,0]
[null,null,null,null,null,0,null,0,null,null,null,0,null,0]
[null,null,null,null,null,0,null,0,null,null,null,0,null,0]
[null,null,null,null,null,0,null,0,null,null,null,0,null,0]
[null,null,null,null,null,0,null,0,null,null,null,0,null,0]
[null,null,null,null,null,0,null,0,null,null,null,0,null,0]
[null,null,null,null,null,0,null,0,null,null,null,0,null,0]
[null,null,null,null,null,0,null,0,null,null,null,0,null,0]
[null,null,null,null,null,0,null,0,null,null,null,0,null,0]
[null,null,null,null,null,0,null,0,null,null,null,0,null,0]
[null,null,null,null,null,0,null,0,null,null,null,0,null,0]
[null,null,null,null,null,0,null,0,null,null,null,0,null,0]
[null,null,null,null,null,0,null,0,null,null,null,0,null,0]
[null,null,null,null,null,0,null,0,null,null,null,0,null,0]
[null,null,null,null,null,0,null,0,null,null,null,0,null,0]
[null,null,null,null,null,0,null,0,null,null,null,0,null,0]
[null,null,null,null,null,0,null,0,null,null,null,0,null,0]
[null,null,null,null,null,0,null,0,null,null,null,0,null,0]
[null,null,null,null,null,0,null,0,null,null,null,0,null,0]
[null,null,null,null,null,0,null,0,null,null,null,0,null,0]
[null,null,null,null,null,0,null,0,null,null,null,0,null,0]
[null,null,null,null,null,0,null,0,null,null,null,0,null,0]
[null,null,null,null,null,0,null,0,null,null,null,0,null,0]
[null,null,null,null,null,0,null,0,null,null,null,0,null,0]
[null,null,null,null,null,0,null,0,null,null,null,0,null,0]
[null,null,null,null,null,0,null,0,null,null,null,0,null,0]
[null,null,null,null,null,0,null,0,null,null,null,0,null,0]
[null,null,null,null,null,0,null,0,null,null,null,0,null,0]
[null,null,null,null,null,{"$f":"SUM(D73*E73)","v":0},null,{"$f":"ROUND(F73*G73/100,2)","v":0},null,null,null,{"$f":"SUM(J73*K73)","v":0},null,{"$f":"ROUND(L73*M73/100,2)","v":0}]
[null,null,null,null,null,0,null,0,null,null,null,0,null,0]
[null,null,null,null,null,0,null,0,null,null,null,0,null,0]
[null,null,null,null,null,0,null,0,null,null,null,0,null,0]
[null,null,null,null,null,0,null,0,null,null,null,0,null,0]
[null,null,null,null,null,0,null,0,null,null,null,0,null,0]
[null,null,null,null,null,0,null,0,null,null,null,0,null,0]
[null,null,null,null,null,0,null,0,null,null,null,0,null,0]
[null,null,null,null,null,0,null,0,null,null,null,0,null,0]
[null,null,null,null,null,0,null,0,null,null,null,0,null,0]
[null,null,null,null,null,0,null,0,null,null,null,0,null,0]
[null,null,null,null,null,0,null,0,null,null,null,0,null,0]
[null,null,null,null,null,0,null,0,null,null,null,0,null,0]
[null,null,null,null,null,0,null,0,null,null,null,0,null,0]
[null,null,null,null,null,0,null,0,null,null,null,0,null,0]
[null,null,null,null,null,0,null,0,null,null,null,0,null,0]
[null,null,null,null,null,0,null,0,null,null,null,0,null,0]
[null,null,null,null,null,0,null,0,null,null,null,0,null,0]
[null,null,null,null,null,0,null,0,null,null,null,0,null,0]
[null,null,null,null,null,0,null,0,null,null,null,0,null,0]
[null,null,null,null,null,0,null,0,null,null,null,0,null,0]
[null,null,null,null,null,0,null,0,null,null,null,0,null,0]
[null,null,null,null,null,0,null,0,null,null,null,0,null,0]
[null,null,null,null,null,0,null,0,null,null,null,0,null,0]
[null,null,null,null,null,0,null,0,null,null,null,0,null,0]
[null,null,null,null,null,0,null,0,null,null,null,0,null,0]
[null,null,null,null,null,0,null,0,null,null,null,0,null,0]
[null,null,null,null,null,0,null,0,null,null,null,0,null,0]
[null,null,null,null,null,0,null,0,null,null,null,0,null,0]
[null,null,null,null,null,0,null,0,null,null,null,0,null,0]
[null,null,null,null,null,0,null,0,null,null,null,0,null,0]
[null,null,null,null,null,0,null,0,null,null,null,0,null,0]
[null,null,null,null,null,0,null,0,null,null,null,0,null,0]
[null,null,null,null,null,0,null,0,null,null,null,0,null,0]
[null,null,null,null,null,0,null,0,null,null,null,0,null,0]
[null,null,null,null,null,0,null,0,null,null,null,0,null,0]
[null,null,null,null,null,0,null,0,null,null,null,0,null,0]
[null,null,null,null,null,0,null,0,null,null,null,0,null,0]
[null,null,null,null,null,0,null,0,null,null,null,0,null,0]
[null,null,null,null,null,0,null,0,null,null,null,0,null,0]
[null,null,null,null,null,0,null,0,null,null,null,0,null,0]
[null,null,null,null,null,0,null,0,null,null,null,0,null,0]
[null,null,null,null,null,0,null,0,null,null,null,0,null,0]
[null,null,null,null,null,0,null,0,null,null,null,0,null,0]
[null,null,null,null,null,0,null,0,null,null,null,0,null,0]
[null,null,null,null,null,0,null,0,null,null,null,0,null,0]
[null,null,null,null,null,0,null,0,null,null,null,0,null,0]
[null,null,null,null,null,0,null,0,null,null,null,0,null,0]
[null,null,null,null,null,0,null,0,null,null,null,0,null,0]
[null,null,null,null,null,0,null,0,null,null,null,0,null,0]
[null,null,null,null,null,0,null,0,null,null,null,0,null,0]
[null,null,null,null,null,0,null,0,null,null,null,0,null,0]
[null,null,null,null,null,0,null,0,null,null,null,{"$f":"SUM(J125*K125)","v":0},null,0]

{"sheet":"13","index":13,"n_rows":125,"n_cols":15,"rows_kept":125,"cut":false,"hidden":false,"merged":[[4,1,5,1],[4,14,5,14],[0,13,0,14],[1,13,1,14]]}
[null,{"$f":"Ricapitolazione!D22","v":0},null,null,"Totale delle entrate",null,{"$f":"SUM(H7:H125)","v":0},"Litri 100%",null,null,null,null,null,"Numero di cliente"]
[null,null,null,null,"Totale delle uscite",null,{"$f":"SUM(N8:N125)","v":0},"Litri 100%",null,null,null,null,null,{"$f":"Ricapitolazione!H3","v":0}]
["Esercizio",{"$f":"Ricapitolazione!I6","v":0},null,null,"Saldo",null,{"$f":"SUM(G1-G2)","v":0},"Litri 100%"]
[]
[null,"In entrata: Produzione / fabbricazione\nIn uscita  : Nome e indirizzo dell'acquirente / utilizzazione\n                   per febbricazione / degustazione / regali",null,null,null,"Entrate",null,null,null,null,null,"Uscite",null,null,"Data della\ndichiarazione per l'imposizione"]
["Data",null,null,"Numero di\nbottiglie","Capacità","litri","% vol.","Litri 100 %",null,"Numero di\nbottiglie","Capacità","Litri","% vol.","Litri 100 %"]
[" ","Stock iniziale / riporto",null,null,null,{"$f":"SUM(D7*E7)","v":0},null,{"$f":"ROUND(F7*G7/100,2)","v":0}]
[null,null,null,null,null,{"$f":"SUM(D8*E8)","v":0},null,{"$f":"ROUND(F8*G8/100,2)","v":0},null,null,null,{"$f":"SUM(J8*K8)","v":0},null,{"$f":"ROUND(L8*M8/100,2)","v":0}]
[null,null,null,null,null,{"$f":"SUM(D9*E9)","v":0},null,{"$f":"ROUND(F9*G9/100,2)","v":0},null,null,null,{"$f":"SUM(J9*K9)","v":0},null,{"$f":"ROUND(L9*M9/100,2)","v":0}]
[null,null,null,null,null,0,null,0,null,null,null,0,null,0]
[null,null,null,null,null,0,null,0,null,null,null,0,null,0]
[null,null,null,null,null,0,null,0,null,null,null,0,null,0]
[null,null,null,null,null,0,null,0,null,null,null,0,null,0]
[null,null,null,null,null,0,null,0,null,null,null,0,null,0]
[null,null,null,null,null,0,null,0,null,null,null,0,null,0]
[null,null,null,null,null,0,null,0,null,null,null,0,null,0]
[null,null,null,null,null,0,null,0,null,null,null,0,null,0]
[null,null,null,null,null,0,null,0,null,null,null,0,null,0]
[null,null,null,null,null,0,null,0,null,null,null,0,null,0]
[null,null,null,null,null,0,null,0,null,null,null,0,null,0]
[null,null,null,null,null,0,null,0,null,null,null,0,null,0]
[null,null,null,null,null,0,null,0,null,null,null,0,null,0]
[null,null,null,null,null,0,null,0,null,null,null,0,null,0]
[null,null,null,null,null,0,null,0,null,null,null,0,null,0]
[null,null,null,null,null,0,null,0,null,null,null,0,null,0]
[null,null,null,null,null,0,null,0,null,null,null,0,null,0]
[null,null,null,null,null,0,null,0,null,null,null,0,null,0]
[null,null,null,null,null,0,null,0,null,null,null,0,null,0]
[null,null,null,null,null,0,null,0,null,null,null,0,null,0]
[null,null,null,null,null,0,null,0,null,null,null,0,null,0]
[null,null,null,null,null,0,null,0,null,null,null,0,null,0]
[null,null,null,null,null,0,null,0,null,null,null,0,null,0]
[null,null,null,null,null,0,null,0,null,null,null,0,null,0]
[null,null,null,null,null,0,null,0,null,null,null,0,null,0]
[null,null,null,null,null,0,null,0,null,null,null,0,null,0]
[null,null,null,null,null,0,null,0,null,null,null,0,null,0]
[null,null,null,null,null,0,null,0,null,null,null,0,null,0]
[null,null,null,null,null,0,null,0,null,null,null,0,null,0]
[null,null,null,null,null,0,null,0,null,null,null,0,null,0]
[null,null,null,null,null,0,null,0,null,null,null,0,null,0]
[null,null,null,null,null,0,null,0,null,null,null,0,null,0]
[null,null,null,null,null,0,null,0,null,null,null,0,null,0]
[null,null,null,null,null,0,null,0,null,null,null,0,null,0]
[null,null,null,null,null,0,null,0,null,null,null,0,null,0]
[null,null,null,null,null,0,null,0,null,null,null,0,null,0]
[null,null,null,null,null,0,null,0,null,null,null,0,null,0]
[null,null,null,null,null,0,null,0,null,null,null,0,null,0]
[null,null,null,null,null,0,null,0,null,null,null,0,null,0]
[null,null,null,null,null,0,null,0,null,null,null,0,null,0]
[null,null,null,null,null,0,null,0,null,null,null,0,null,0]
[null,null,null,null,null,0,null,0,null,null,null,0,null,0]
[null,null,null,null,null,0,null,0,null,null,null,0,null,0]
[null,null,null,null,null,0,null,0,null,null,null,0,null,0]
[null,null,null,null,null,0,null,0,null,null,null,0,null,0]
[null,null,null,null,null,0,null,0,null,null,null,0,null,0]
[null,null,null,null,null,0,null,0,null,null,null,0,null,0]
[null,null,null,null,null,0,null,0,null,null,null,0,null,0]
[null,null,null,null,null,0,null,0,null,null,null,0,null,0]
[null,null,null,null,null,0,null,0,null,null,null,0,null,0]
[null,null,null,null,null,0,null,0,null,null,null,0,null,0]
[null,null,null,null,null,0,null,0,null,null,null,0,null,0]
[null,null,null,null,null,0,null,0,null,null,null,0,null,0]
[null,null,null,null,null,0,null,0,null,null,null,0,null,0]
[null,null,null,null,null,0,null,0,null,null,null,0,null,0]
[null,null,null,null,null,0,null,0,null,null,null,0,null,0]
[null,null,null,null,null,0,null,0,null,null,null,0,null,0]
[null,null,null,null,null,0,null,0,null,null,null,0,null,0]
[null,null,null,null,null,0,null,0,null,null,null,0,null,0]
[null,null,null,null,null,0,null,0,null,null,null,0,null,0]
[null,null,null,null,null,0,null,0,null,null,null,0,null,0]
[null,null,null,null,null,0,null,0,null,null,null,0,null,0]
[null,null,null,null,null,0,null,0,null,null,null,0,null,0]
[null,null,null,null,null,{"$f":"SUM(D73*E73)","v":0},null,{"$f":"ROUND(F73*G73/100,2)","v":0},null,null,null,{"$f":"SUM(J73*K73)","v":0},null,{"$f":"ROUND(L73*M73/100,2)","v":0}]
[null,null,null,null,null,0,null,0,null,null,null,0,null,0]
[null,null,null,null,null,0,null,0,null,null,null,0,null,0]
[null,null,null,null,null,0,null,0,null,null,null,0,null,0]
[null,null,null,null,null,0,null,0,null,null,null,0,null,0]
[null,null,null,null,null,0,null,0,null,null,null,0,null,0]
[null,null,null,null,null,0,null,0,null,null,null,0,null,0]
[null,null,null,null,null,0,null,0,null,null,null,0,null,0]
[null,null,null,null,null,0,null,0,null,null,null,0,null,0]
[null,null,null,null,null,0,null,0,null,null,null,0,null,0]
[null,null,null,null,null,0,null,0,null,null,null,0,null,0]
[null,null,null,null,null,0,null,0,null,null,null,0,null,0]
[null,null,null,null,null,0,null,0,null,null,null,0,null,0]
[null,null,null,null,null,0,null,0,null,null,null,0,null,0]
[null,null,null,null,null,0,null,0,null,null,null,0,null,0]
[null,null,null,null,null,0,null,0,null,null,null,0,null,0]
[null,null,null,null,null,0,null,0,null,null,null,0,null,0]
[null,null,null,null,null,0,null,0,null,null,null,0,null,0]
[null,null,null,null,null,0,null,0,null,null,null,0,null,0]
[null,null,null,null,null,0,null,0,null,null,null,0,null,0]
[null,null,null,null,null,0,null,0,null,null,null,0,null,0]
[null,null,null,null,null,0,null,0,null,null,null,0,null,0]
[null,null,null,null,null,0,null,0,null,null,null,0,null,0]
[null,null,null,null,null,0,null,0,null,null,null,0,null,0]
[null,null,null,null,null,0,null,0,null,null,null,0,null,0]
[null,null,null,null,null,0,null,0,null,null,null,0,null,0]
[null,null,null,null,null,0,null,0,null,null,null,0,null,0]
[null,null,null,null,null,0,null,0,null,null,null,0,null,0]
[null,null,null,null,null,0,null,0,null,null,null,0,null,0]
[null,null,null,null,null,0,null,0,null,null,null,0,null,0]
[null,null,null,null,null,0,null,0,null,null,null,0,null,0]
[null,null,null,null,null,0,null,0,null,null,null,0,null,0]
[null,null,null,null,null,0,null,0,null,null,null,0,null,0]
[null,null,null,null,null,0,null,0,null,null,null,0,null,0]
[null,null,null,null,null,0,null,0,null,null,null,0,null,0]
[null,null,null,null,null,0,null,0,null,null,null,0,null,0]
[null,null,null,null,null,0,null,0,null,null,null,0,null,0]
[null,null,null,null,null,0,null,0,null,null,null,0,null,0]
[null,null,null,null,null,0,null,0,null,null,null,0,null,0]
[null,null,null,null,null,0,null,0,null,null,null,0,null,0]
[null,null,null,null,null,0,null,0,null,null,null,0,null,0]
[null,null,null,null,null,0,null,0,null,null,null,0,null,0]
[null,null,null,null,null,0,null,0,null,null,null,0,null,0]
[null,null,null,null,null,0,null,0,null,null,null,0,null,0]
[null,null,null,null,null,0,null,0,null,null,null,0,null,0]
[null,null,null,null,null,0,null,0,null,null,null,0,null,0]
[null,null,null,null,null,0,null,0,null,null,null,0,null,0]
[null,null,null,null,null,0,null,0,null,null,null,0,null,0]
[null,null,null,null,null,0,null,0,null,null,null,0,null,0]
[null,null,null,null,null,0,null,0,null,null,null,0,null,0]
[null,null,null,null,null,0,null,0,null,null,null,0,null,0]
[null,null,null,null,null,0,null,0,null,null,null,0,null,0]
[null,null,null,null,null,0,null,0,null,null,null,{"$f":"SUM(J125*K125)","v":0},null,0]

{"sheet":"14","index":14,"n_rows":125,"n_cols":15,"rows_kept":125,"cut":false,"hidden":false,"merged":[[4,1,5,1],[4,14,5,14],[0,13,0,14],[1,13,1,14]]}
[null,{"$f":"Ricapitolazione!D23","v":0},null,null,"Totale delle entrate",null,{"$f":"SUM(H7:H125)","v":0},"Litri 100%",null,null,null,null,null,"Numero di cliente"]
[null,null,null,null,"Totale delle uscite",null,{"$f":"SUM(N8:N125)","v":0},"Litri 100%",null,null,null,null,null,{"$f":"Ricapitolazione!H3","v":0}]
["Esercizio",{"$f":"Ricapitolazione!I6","v":0},null,null,"Saldo",null,{"$f":"SUM(G1-G2)","v":0},"Litri 100%"]
[]
[null,"In entrata: Produzione / fabbricazione\nIn uscita  : Nome e indirizzo dell'acquirente / utilizzazione\n                   per febbricazione / degustazione / regali",null,null,null,"Entrate",null,null,null,null,null,"Uscite",null,null,"Data della\ndichiarazione per l'imposizione"]
["Data",null,null,"Numero di\nbottiglie","Capacità","litri","% vol.","Litri 100 %",null,"Numero di\nbottiglie","Capacità","Litri","% vol.","Litri 100 %"]
[" ","Stock iniziale / riporto",null,null,null,{"$f":"SUM(D7*E7)","v":0},null,{"$f":"ROUND(F7*G7/100,2)","v":0}]
[null,null,null,null,null,{"$f":"SUM(D8*E8)","v":0},null,{"$f":"ROUND(F8*G8/100,2)","v":0},null,null,null,{"$f":"SUM(J8*K8)","v":0},null,{"$f":"ROUND(L8*M8/100,2)","v":0}]
[null,null,null,null,null,{"$f":"SUM(D9*E9)","v":0},null,{"$f":"ROUND(F9*G9/100,2)","v":0},null,null,null,{"$f":"SUM(J9*K9)","v":0},null,{"$f":"ROUND(L9*M9/100,2)","v":0}]
[null,null,null,null,null,0,null,0,null,null,null,0,null,0]
[null,null,null,null,null,0,null,0,null,null,null,0,null,0]
[null,null,null,null,null,0,null,0,null,null,null,0,null,0]
[null,null,null,null,null,0,null,0,null,null,null,0,null,0]
[null,null,null,null,null,0,null,0,null,null,null,0,null,0]
[null,null,null,null,null,0,null,0,null,null,null,0,null,0]
[null,null,null,null,null,0,null,0,null,null,null,0,null,0]
[null,null,null,null,null,0,null,0,null,null,null,0,null,0]
[null,null,null,null,null,0,null,0,null,null,null,0,null,0]
[null,null,null,null,null,0,null,0,null,null,null,0,null,0]
[null,null,null,null,null,0,null,0,null,null,null,0,null,0]
[null,null,null,null,null,0,null,0,null,null,null,0,null,0]
[null,null,null,null,null,0,null,0,null,null,null,0,null,0]
[null,null,null,null,null,0,null,0,null,null,null,0,null,0]
[null,null,null,null,null,0,null,0,null,null,null,0,null,0]
[null,null,null,null,null,0,null,0,null,null,null,0,null,0]
[null,null,null,null,null,0,null,0,null,null,null,0,null,0]
[null,null,null,null,null,0,null,0,null,null,null,0,null,0]
[null,null,null,null,null,0,null,0,null,null,null,0,null,0]
[null,null,null,null,null,0,null,0,null,null,null,0,null,0]
[null,null,null,null,null,0,null,0,null,null,null,0,null,0]
[null,null,null,null,null,0,null,0,null,null,null,0,null,0]
[null,null,null,null,null,0,null,0,null,null,null,0,null,0]
[null,null,null,null,null,0,null,0,null,null,null,0,null,0]
[null,null,null,null,null,0,null,0,null,null,null,0,null,0]
[null,null,null,null,null,0,null,0,null,null,null,0,null,0]
[null,null,null,null,null,0,null,0,null,null,null,0,null,0]
[null,null,null,null,null,0,null,0,null,null,null,0,null,0]
[null,null,null,null,null,0,null,0,null,null,null,0,null,0]
[null,null,null,null,null,0,null,0,null,null,null,0,null,0]
[null,null,null,null,null,0,null,0,null,null,null,0,null,0]
[null,null,null,null,null,0,null,0,null,null,null,0,null,0]
[null,null,null,null,null,0,null,0,null,null,null,0,null,0]
[null,null,null,null,null,0,null,0,null,null,null,0,null,0]
[null,null,null,null,null,0,null,0,null,null,null,0,null,0]
[null,null,null,null,null,0,null,0,null,null,null,0,null,0]
[null,null,null,null,null,0,null,0,null,null,null,0,null,0]
[null,null,null,null,null,0,null,0,null,null,null,0,null,0]
[null,null,null,null,null,0,null,0,null,null,null,0,null,0]
[null,null,null,null,null,0,null,0,null,null,null,0,null,0]
[null,null,null,null,null,0,null,0,null,null,null,0,null,0]
[null,null,null,null,null,0,null,0,null,null,null,0,null,0]
[null,null,null,null,null,0,null,0,null,null,null,0,null,0]
[null,null,null,null,null,0,null,0,null,null,null,0,null,0]
[null,null,null,null,null,0,null,0,null,null,null,0,null,0]
[null,null,null,null,null,0,null,0,null,null,null,0,null,0]
[null,null,null,null,null,0,null,0,null,null,null,0,null,0]
[null,null,null,null,null,0,null,0,null,null,null,0,null,0]
[null,null,null,null,null,0,null,0,null,null,null,0,null,0]
[null,null,null,null,null,0,null,0,null,null,null,0,null,0]
[null,null,null,null,null,0,null,0,null,null,null,0,null,0]
[null,null,null,null,null,0,null,0,null,null,null,0,null,0]
[null,null,null,null,null,0,null,0,null,null,null,0,null,0]
[null,null,null,null,null,0,null,0,null,null,null,0,null,0]
[null,null,null,null,null,0,null,0,null,null,null,0,null,0]
[null,null,null,null,null,0,null,0,null,null,null,0,null,0]
[null,null,null,null,null,0,null,0,null,null,null,0,null,0]
[null,null,null,null,null,0,null,0,null,null,null,0,null,0]
[null,null,null,null,null,0,null,0,null,null,null,0,null,0]
[null,null,null,null,null,0,null,0,null,null,null,0,null,0]
[null,null,null,null,null,0,null,0,null,null,null,0,null,0]
[null,null,null,null,null,0,null,0,null,null,null,0,null,0]
[null,null,null,null,null,0,null,0,null,null,null,0,null,0]
[null,null,null,null,null,{"$f":"SUM(D73*E73)","v":0},null,{"$f":"ROUND(F73*G73/100,2)","v":0},null,null,null,{"$f":"SUM(J73*K73)","v":0},null,{"$f":"ROUND(L73*M73/100,2)","v":0}]
[null,null,null,null,null,0,null,0,null,null,null,0,null,0]
[null,null,null,null,null,0,null,0,null,null,null,0,null,0]
[null,null,null,null,null,0,null,0,null,null,null,0,null,0]
[null,null,null,null,null,0,null,0,null,null,null,0,null,0]
[null,null,null,null,null,0,null,0,null,null,null,0,null,0]
[null,null,null,null,null,0,null,0,null,null,null,0,null,0]
[null,null,null,null,null,0,null,0,null,null,null,0,null,0]
[null,null,null,null,null,0,null,0,null,null,null,0,null,0]
[null,null,null,null,null,0,null,0,null,null,null,0,null,0]
[null,null,null,null,null,0,null,0,null,null,null,0,null,0]
[null,null,null,null,null,0,null,0,null,null,null,0,null,0]
[null,null,null,null,null,0,null,0,null,null,null,0,null,0]
[null,null,null,null,null,0,null,0,null,null,null,0,null,0]
[null,null,null,null,null,0,null,0,null,null,null,0,null,0]
[null,null,null,null,null,0,null,0,null,null,null,0,null,0]
[null,null,null,null,null,0,null,0,null,null,null,0,null,0]
[null,null,null,null,null,0,null,0,null,null,null,0,null,0]
[null,null,null,null,null,0,null,0,null,null,null,0,null,0]
[null,null,null,null,null,0,null,0,null,null,null,0,null,0]
[null,null,null,null,null,0,null,0,null,null,null,0,null,0]
[null,null,null,null,null,0,null,0,null,null,null,0,null,0]
[null,null,null,null,null,0,null,0,null,null,null,0,null,0]
[null,null,null,null,null,0,null,0,null,null,null,0,null,0]
[null,null,null,null,null,0,null,0,null,null,null,0,null,0]
[null,null,null,null,null,0,null,0,null,null,null,0,null,0]
[null,null,null,null,null,0,null,0,null,null,null,0,null,0]
[null,null,null,null,null,0,null,0,null,null,null,0,null,0]
[null,null,null,null,null,0,null,0,null,null,null,0,null,0]
[null,null,null,null,null,0,null,0,null,null,null,0,null,0]
[null,null,null,null,null,0,null,0,null,null,null,0,null,0]
[null,null,null,null,null,0,null,0,null,null,null,0,null,0]
[null,null,null,null,null,0,null,0,null,null,null,0,null,0]
[null,null,null,null,null,0,null,0,null,null,null,0,null,0]
[null,null,null,null,null,0,null,0,null,null,null,0,null,0]
[null,null,null,null,null,0,null,0,null,null,null,0,null,0]
[null,null,null,null,null,0,null,0,null,null,null,0,null,0]
[null,null,null,null,null,0,null,0,null,null,null,0,null,0]
[null,null,null,null,null,0,null,0,null,null,null,0,null,0]
[null,null,null,null,null,0,null,0,null,null,null,0,null,0]
[null,null,null,null,null,0,null,0,null,null,null,0,null,0]
[null,null,null,null,null,0,null,0,null,null,null,0,null,0]
[null,null,null,null,null,0,null,0,null,null,null,0,null,0]
[null,null,null,null,null,0,null,0,null,null,null,0,null,0]
[null,null,null,null,null,0,null,0,null,null,null,0,null,0]
[null,null,null,null,null,0,null,0,null,null,null,0,null,0]
[null,null,null,null,null,0,null,0,null,null,null,0,null,0]
[null,null,null,null,null,0,null,0,null,null,null,0,null,0]
[null,null,null,null,null,0,null,0,null,null,null,0,null,0]
[null,null,null,null,null,0,null,0,null,null,null,0,null,0]
[null,null,null,null,null,0,null,0,null,null,null,0,null,0]
[null,null,null,null,null,0,null,0,null,null,null,0,null,0]
[null,null,null,null,null,0,null,0,null,null,null,{"$f":"SUM(J125*K125)","v":0},null,0]

{"sheet":"15","index":15,"n_rows":125,"n_cols":15,"rows_kept":125,"cut":false,"hidden":false,"merged":[[4,1,5,1],[4,14,5,14],[0,13,0,14],[1,13,1,14]]}
[null,{"$f":"Ricapitolazione!D24","v":0},null,null,"Totale delle entrate",null,{"$f":"SUM(H7:H125)","v":0},"Litri 100%",null,null,null,null,null,"Numero di cliente"]
[null,null,null,null,"Totale delle uscite",null,{"$f":"SUM(N8:N125)","v":0},"Litri 100%",null,null,null,null,null,{"$f":"Ricapitolazione!H3","v":0}]
["Esercizio",{"$f":"Ricapitolazione!I6","v":0},null,null,"Saldo",null,{"$f":"SUM(G1-G2)","v":0},"Litri 100%"]
[]
[null,"In entrata: Produzione / fabbricazione\nIn uscita  : Nome e indirizzo dell'acquirente / utilizzazione\n                   per febbricazione / degustazione / regali",null,null,null,"Entrate",null,null,null,null,null,"Uscite",null,null,"Data della\ndichiarazione per l'imposizione"]
["Data",null,null,"Numero di\nbottiglie","Capacità","litri","% vol.","Litri 100 %",null,"Numero di\nbottiglie","Capacità","Litri","% vol.","Litri 100 %"]
[" ","Stock iniziale / riporto",null,null,null,{"$f":"SUM(D7*E7)","v":0},null,{"$f":"ROUND(F7*G7/100,2)","v":0}]
[null,null,null,null,null,{"$f":"SUM(D8*E8)","v":0},null,{"$f":"ROUND(F8*G8/100,2)","v":0},null,null,null,{"$f":"SUM(J8*K8)","v":0},null,{"$f":"ROUND(L8*M8/100,2)","v":0}]
[null,null,null,null,null,{"$f":"SUM(D9*E9)","v":0},null,{"$f":"ROUND(F9*G9/100,2)","v":0},null,null,null,{"$f":"SUM(J9*K9)","v":0},null,{"$f":"ROUND(L9*M9/100,2)","v":0}]
[null,null,null,null,null,0,null,0,null,null,null,0,null,0]
[null,null,null,null,null,0,null,0,null,null,null,0,null,0]
[null,null,null,null,null,0,null,0,null,null,null,0,null,0]
[null,null,null,null,null,0,null,0,null,null,null,0,null,0]
[null,null,null,null,null,0,null,0,null,null,null,0,null,0]
[null,null,null,null,null,0,null,0,null,null,null,0,null,0]
[null,null,null,null,null,0,null,0,null,null,null,0,null,0]
[null,null,null,null,null,0,null,0,null,null,null,0,null,0]
[null,null,null,null,null,0,null,0,null,null,null,0,null,0]
[null,null,null,null,null,0,null,0,null,null,null,0,null,0]
[null,null,null,null,null,0,null,0,null,null,null,0,null,0]
[null,null,null,null,null,0,null,0,null,null,null,0,null,0]
[null,null,null,null,null,0,null,0,null,null,null,0,null,0]
[null,null,null,null,null,0,null,0,null,null,null,0,null,0]
[null,null,null,null,null,0,null,0,null,null,null,0,null,0]
[null,null,null,null,null,0,null,0,null,null,null,0,null,0]
[null,null,null,null,null,0,null,0,null,null,null,0,null,0]
[null,null,null,null,null,0,null,0,null,null,null,0,null,0]
[null,null,null,null,null,0,null,0,null,null,null,0,null,0]
[null,null,null,null,null,0,null,0,null,null,null,0,null,0]
[null,null,null,null,null,0,null,0,null,null,null,0,null,0]
[null,null,null,null,null,0,null,0,null,null,null,0,null,0]
[null,null,null,null,null,0,null,0,null,null,null,0,null,0]
[null,null,null,null,null,0,null,0,null,null,null,0,null,0]
[null,null,null,null,null,0,null,0,null,null,null,0,null,0]
[null,null,null,null,null,0,null,0,null,null,null,0,null,0]
[null,null,null,null,null,0,null,0,null,null,null,0,null,0]
[null,null,null,null,null,0,null,0,null,null,null,0,null,0]
[null,null,null,null,null,0,null,0,null,null,null,0,null,0]
[null,null,null,null,null,0,null,0,null,null,null,0,null,0]
[null,null,null,null,null,0,null,0,null,null,null,0,null,0]
[null,null,null,null,null,0,null,0,null,null,null,0,null,0]
[null,null,null,null,null,0,null,0,null,null,null,0,null,0]
[null,null,null,null,null,0,null,0,null,null,null,0,null,0]
[null,null,null,null,null,0,null,0,null,null,null,0,null,0]
[null,null,null,null,null,0,null,0,null,null,null,0,null,0]
[null,null,null,null,null,0,null,0,null,null,null,0,null,0]
[null,null,null,null,null,0,null,0,null,null,null,0,null,0]
[null,null,null,null,null,0,null,0,null,null,null,0,null,0]
[null,null,null,null,null,0,null,0,null,null,null,0,null,0]
[null,null,null,null,null,0,null,0,null,null,null,0,null,0]
[null,null,null,null,null,0,null,0,null,null,null,0,null,0]
[null,null,null,null,null,0,null,0,null,null,null,0,null,0]
[null,null,null,null,null,0,null,0,null,null,null,0,null,0]
[null,null,null,null,null,0,null,0,null,null,null,0,null,0]
[null,null,null,null,null,0,null,0,null,null,null,0,null,0]
[null,null,null,null,null,0,null,0,null,null,null,0,null,0]
[null,null,null,null,null,0,null,0,null,null,null,0,null,0]
[null,null,null,null,null,0,null,0,null,null,null,0,null,0]
[null,null,null,null,null,0,null,0,null,null,null,0,null,0]
[null,null,null,null,null,0,null,0,null,null,null,0,null,0]
[null,null,null,null,null,0,null,0,null,null,null,0,null,0]
[null,null,null,null,null,0,null,0,null,null,null,0,null,0]
[null,null,null,null,null,0,null,0,null,null,null,0,null,0]
[null,null,null,null,null,0,null,0,null,null,null,0,null,0]
[null,null,null,null,null,0,null,0,null,null,null,0,null,0]
[null,null,null,null,null,0,null,0,null,null,null,0,null,0]
[null,null,null,null,null,0,null,0,null,null,null,0,null,0]
[null,null,null,null,null,0,null,0,null,null,null,0,null,0]
[null,null,null,null,null,0,null,0,null,null,null,0,null,0]
[null,null,null,null,null,0,null,0,null,null,null,0,null,0]
[null,null,null,null,null,0,null,0,null,null,null,0,null,0]
[null,null,null,null,null,0,null,0,null,null,null,0,null,0]
[null,null,null,null,null,{"$f":"SUM(D73*E73)","v":0},null,{"$f":"ROUND(F73*G73/100,2)","v":0},null,null,null,{"$f":"SUM(J73*K73)","v":0},null,{"$f":"ROUND(L73*M73/100,2)","v":0}]
[null,null,null,null,null,0,null,0,null,null,null,0,null,0]
[null,null,null,null,null,0,null,0,null,null,null,0,null,0]
[null,null,null,null,null,0,null,0,null,null,null,0,null,0]
[null,null,null,null,null,0,null,0,null,null,null,0,null,0]
[null,null,null,null,null,0,null,0,null,null,null,0,null,0]
[null,null,null,null,null,0,null,0,null,null,null,0,null,0]
[null,null,null,null,null,0,null,0,null,null,null,0,null,0]
[null,null,null,null,null,0,null,0,null,null,null,0,null,0]
[null,null,null,null,null,0,null,0,null,null,null,0,null,0]
[null,null,null,null,null,0,null,0,null,null,null,0,null,0]
[null,null,null,null,null,0,null,0,null,null,null,0,null,0]
[null,null,null,null,null,0,null,0,null,null,null,0,null,0]
[null,null,null,null,null,0,null,0,null,null,null,0,null,0]
[null,null,null,null,null,0,null,0,null,null,null,0,null,0]
[null,null,null,null,null,0,null,0,null,null,null,0,null,0]
[null,null,null,null,null,0,null,0,null,null,null,0,null,0]
[null,null,null,null,null,0,null,0,null,null,null,0,null,0]
[null,null,null,null,null,0,null,0,null,null,null,0,null,0]
[null,null,null,null,null,0,null,0,null,null,null,0,null,0]
[null,null,null,null,null,0,null,0,null,null,null,0,null,0]
[null,null,null,null,null,0,null,0,null,null,null,0,null,0]
[null,null,null,null,null,0,null,0,null,null,null,0,null,0]
[null,null,null,null,null,0,null,0,null,null,null,0,null,0]
[null,null,null,null,null,0,null,0,null,null,null,0,null,0]
[null,null,null,null,null,0,null,0,null,null,null,0,null,0]
[null,null,null,null,null,0,null,0,null,null,null,0,null,0]
[null,null,null,null,null,0,null,0,null,null,null,0,null,0]
[null,null,null,null,null,0,null,0,null,null,null,0,null,0]
[null,null,null,null,null,0,null,0,null,null,null,0,null,0]
[null,null,null,null,null,0,null,0,null,null,null,0,null,0]
[null,null,null,null,null,0,null,0,null,null,null,0,null,0]
[null,null,null,null,null,0,null,0,null,null,null,0,null,0]
[null,null,null,null,null,0,null,0,null,null,null,0,null,0]
[null,null,null,null,null,0,null,0,null,null,null,0,null,0]
[null,null,null,null,null,0,null,0,null,null,null,0,null,0]
[null,null,null,null,null,0,null,0,null,null,null,0,null,0]
[null,null,null,null,null,0,null,0,null,null,null,0,null,0]
[null,null,null,null,null,0,null,0,null,null,null,0,null,0]
[null,null,null,null,null,0,null,0,null,null,null,0,null,0]
[null,null,null,null,null,0,null,0,null,null,null,0,null,0]
[null,null,null,null,null,0,null,0,null,null,null,0,null,0]
[null,null,null,null,null,0,null,0,null,null,null,0,null,0]
[null,null,null,null,null,0,null,0,null,null,null,0,null,0]
[null,null,null,null,null,0,null,0,null,null,null,0,null,0]
[null,null,null,null,null,0,null,0,null,null,null,0,null,0]
[null,null,null,null,null,0,null,0,null,null,null,0,null,0]
[null,null,null,null,null,0,null,0,null,null,null,0,null,0]
[null,null,null,null,null,0,null,0,null,null,null,0,null,0]
[null,null,null,null,null,0,null,0,null,null,null,0,null,0]
[null,null,null,null,null,0,null,0,null,null,null,0,null,0]
[null,null,null,null,null,0,null,0,null,null,null,0,null,0]
[null,null,null,null,null,0,null,0,null,null,null,{"$f":"SUM(J125*K125)","v":0},null,0]

{"sheet":"16","index":16,"n_rows":125,"n_cols":15,"rows_kept":125,"cut":false,"hidden":false,"merged":[[4,1,5,1],[4,14,5,14],[0,13,0,14],[1,13,1,14]]}
[null,{"$f":"Ricapitolazione!D25","v":0},null,null,"Totale delle entrate",null,{"$f":"SUM(H7:H125)","v":0},"Litri 100%",null,null,null,null,null,"Numero di cliente"]
[null,null,null,null,"Totale delle uscite",null,{"$f":"SUM(N8:N125)","v":0},"Litri 100%",null,null,null,null,null,{"$f":"Ricapitolazione!H3","v":0}]
["Esercizio",{"$f":"Ricapitolazione!I6","v":0},null,null,"Saldo",null,{"$f":"SUM(G1-G2)","v":0},"Litri 100%"]
[]
[null,"In entrata: Produzione / fabbricazione\nIn uscita  : Nome e indirizzo dell'acquirente / utilizzazione\n                   per febbricazione / degustazione / regali",null,null,null,"Entrate",null,null,null,null,null,"Uscite",null,null,"Data della\ndichiarazione per l'imposizione"]
["Data",null,null,"Numero di\nbottiglie","Capacità","litri","% vol.","Litri 100 %",null,"Numero di\nbottiglie","Capacità","Litri","% vol.","Litri 100 %"]
[" ","Stock iniziale / riporto",null,null,null,{"$f":"SUM(D7*E7)","v":0},null,{"$f":"ROUND(F7*G7/100,2)","v":0}]
[null,null,null,null,null,{"$f":"SUM(D8*E8)","v":0},null,{"$f":"ROUND(F8*G8/100,2)","v":0},null,null,null,{"$f":"SUM(J8*K8)","v":0},null,{"$f":"ROUND(L8*M8/100,2)","v":0}]
[null,null,null,null,null,{"$f":"SUM(D9*E9)","v":0},null,{"$f":"ROUND(F9*G9/100,2)","v":0},null,null,null,{"$f":"SUM(J9*K9)","v":0},null,{"$f":"ROUND(L9*M9/100,2)","v":0}]
[null,null,null,null,null,0,null,0,null,null,null,0,null,0]
[null,null,null,null,null,0,null,0,null,null,null,0,null,0]
[null,null,null,null,null,0,null,0,null,null,null,0,null,0]
[null,null,null,null,null,0,null,0,null,null,null,0,null,0]
[null,null,null,null,null,0,null,0,null,null,null,0,null,0]
[null,null,null,null,null,0,null,0,null,null,null,0,null,0]
[null,null,null,null,null,0,null,0,null,null,null,0,null,0]
[null,null,null,null,null,0,null,0,null,null,null,0,null,0]
[null,null,null,null,null,0,null,0,null,null,null,0,null,0]
[null,null,null,null,null,0,null,0,null,null,null,0,null,0]
[null,null,null,null,null,0,null,0,null,null,null,0,null,0]
[null,null,null,null,null,0,null,0,null,null,null,0,null,0]
[null,null,null,null,null,0,null,0,null,null,null,0,null,0]
[null,null,null,null,null,0,null,0,null,null,null,0,null,0]
[null,null,null,null,null,0,null,0,null,null,null,0,null,0]
[null,null,null,null,null,0,null,0,null,null,null,0,null,0]
[null,null,null,null,null,0,null,0,null,null,null,0,null,0]
[null,null,null,null,null,0,null,0,null,null,null,0,null,0]
[null,null,null,null,null,0,null,0,null,null,null,0,null,0]
[null,null,null,null,null,0,null,0,null,null,null,0,null,0]
[null,null,null,null,null,0,null,0,null,null,null,0,null,0]
[null,null,null,null,null,0,null,0,null,null,null,0,null,0]
[null,null,null,null,null,0,null,0,null,null,null,0,null,0]
[null,null,null,null,null,0,null,0,null,null,null,0,null,0]
[null,null,null,null,null,0,null,0,null,null,null,0,null,0]
[null,null,null,null,null,0,null,0,null,null,null,0,null,0]
[null,null,null,null,null,0,null,0,null,null,null,0,null,0]
[null,null,null,null,null,0,null,0,null,null,null,0,null,0]
[null,null,null,null,null,0,null,0,null,null,null,0,null,0]
[null,null,null,null,null,0,null,0,null,null,null,0,null,0]
[null,null,null,null,null,0,null,0,null,null,null,0,null,0]
[null,null,null,null,null,0,null,0,null,null,null,0,null,0]
[null,null,null,null,null,0,null,0,null,null,null,0,null,0]
[null,null,null,null,null,0,null,0,null,null,null,0,null,0]
[null,null,null,null,null,0,null,0,null,null,null,0,null,0]
[null,null,null,null,null,0,null,0,null,null,null,0,null,0]
[null,null,null,null,null,0,null,0,null,null,null,0,null,0]
[null,null,null,null,null,0,null,0,null,null,null,0,null,0]
[null,null,null,null,null,0,null,0,null,null,null,0,null,0]
[null,null,null,null,null,0,null,0,null,null,null,0,null,0]
[null,null,null,null,null,0,null,0,null,null,null,0,null,0]
[null,null,null,null,null,0,null,0,null,null,null,0,null,0]
[null,null,null,null,null,0,null,0,null,null,null,0,null,0]
[null,null,null,null,null,0,null,0,null,null,null,0,null,0]
[null,null,null,null,null,0,null,0,null,null,null,0,null,0]
[null,null,null,null,null,0,null,0,null,null,null,0,null,0]
[null,null,null,null,null,0,null,0,null,null,null,0,null,0]
[null,null,null,null,null,0,null,0,null,null,null,0,null,0]
[null,null,null,null,null,0,null,0,null,null,null,0,null,0]
[null,null,null,null,null,0,null,0,null,null,null,0,null,0]
[null,null,null,null,null,0,null,0,null,null,null,0,null,0]
[null,null,null,null,null,0,null,0,null,null,null,0,null,0]
[null,null,null,null,null,0,null,0,null,null,null,0,null,0]
[null,null,null,null,null,0,null,0,null,null,null,0,null,0]
[null,null,null,null,null,0,null,0,null,null,null,0,null,0]
[null,null,null,null,null,0,null,0,null,null,null,0,null,0]
[null,null,null,null,null,0,null,0,null,null,null,0,null,0]
[null,null,null,null,null,0,null,0,null,null,null,0,null,0]
[null,null,null,null,null,0,null,0,null,null,null,0,null,0]
[null,null,null,null,null,0,null,0,null,null,null,0,null,0]
[null,null,null,null,null,0,null,0,null,null,null,0,null,0]
[null,null,null,null,null,0,null,0,null,null,null,0,null,0]
[null,null,null,null,null,0,null,0,null,null,null,0,null,0]
[null,null,null,null,null,{"$f":"SUM(D73*E73)","v":0},null,{"$f":"ROUND(F73*G73/100,2)","v":0},null,null,null,{"$f":"SUM(J73*K73)","v":0},null,{"$f":"ROUND(L73*M73/100,2)","v":0}]
[null,null,null,null,null,0,null,0,null,null,null,0,null,0]
[null,null,null,null,null,0,null,0,null,null,null,0,null,0]
[null,null,null,null,null,0,null,0,null,null,null,0,null,0]
[null,null,null,null,null,0,null,0,null,null,null,0,null,0]
[null,null,null,null,null,0,null,0,null,null,null,0,null,0]
[null,null,null,null,null,0,null,0,null,null,null,0,null,0]
[null,null,null,null,null,0,null,0,null,null,null,0,null,0]
[null,null,null,null,null,0,null,0,null,null,null,0,null,0]
[null,null,null,null,null,0,null,0,null,null,null,0,null,0]
[null,null,null,null,null,0,null,0,null,null,null,0,null,0]
[null,null,null,null,null,0,null,0,null,null,null,0,null,0]
[null,null,null,null,null,0,null,0,null,null,null,0,null,0]
[null,null,null,null,null,0,null,0,null,null,null,0,null,0]
[null,null,null,null,null,0,null,0,null,null,null,0,null,0]
[null,null,null,null,null,0,null,0,null,null,null,0,null,0]
[null,null,null,null,null,0,null,0,null,null,null,0,null,0]
[null,null,null,null,null,0,null,0,null,null,null,0,null,0]
[null,null,null,null,null,0,null,0,null,null,null,0,null,0]
[null,null,null,null,null,0,null,0,null,null,null,0,null,0]
[null,null,null,null,null,0,null,0,null,null,null,0,null,0]
[null,null,null,null,null,0,null,0,null,null,null,0,null,0]
[null,null,null,null,null,0,null,0,null,null,null,0,null,0]
[null,null,null,null,null,0,null,0,null,null,null,0,null,0]
[null,null,null,null,null,0,null,0,null,null,null,0,null,0]
[null,null,null,null,null,0,null,0,null,null,null,0,null,0]
[null,null,null,null,null,0,null,0,null,null,null,0,null,0]
[null,null,null,null,null,0,null,0,null,null,null,0,null,0]
[null,null,null,null,null,0,null,0,null,null,null,0,null,0]
[null,null,null,null,null,0,null,0,null,null,null,0,null,0]
[null,null,null,null,null,0,null,0,null,null,null,0,null,0]
[null,null,null,null,null,0,null,0,null,null,null,0,null,0]
[null,null,null,null,null,0,null,0,null,null,null,0,null,0]
[null,null,null,null,null,0,null,0,null,null,null,0,null,0]
[null,null,null,null,null,0,null,0,null,null,null,0,null,0]
[null,null,null,null,null,0,null,0,null,null,null,0,null,0]
[null,null,null,null,null,0,null,0,null,null,null,0,null,0]
[null,null,null,null,null,0,null,0,null,null,null,0,null,0]
[null,null,null,null,null,0,null,0,null,null,null,0,null,0]
[null,null,null,null,null,0,null,0,null,null,null,0,null,0]
[null,null,null,null,null,0,null,0,null,null,null,0,null,0]
[null,null,null,null,null,0,null,0,null,null,null,0,null,0]
[null,null,null,null,null,0,null,0,null,null,null,0,null,0]
[null,null,null,null,null,0,null,0,null,null,null,0,null,0]
[null,null,null,null,null,0,null,0,null,null,null,0,null,0]
[null,null,null,null,null,0,null,0,null,null,null,0,null,0]
[null,null,null,null,null,0,null,0,null,null,null,0,null,0]
[null,null,null,null,null,0,null,0,null,null,null,0,null,0]
[null,null,null,null,null,0,null,0,null,null,null,0,null,0]
[null,null,null,null,null,0,null,0,null,null,null,0,null,0]
[null,null,null,null,null,0,null,0,null,null,null,0,null,0]
[null,null,null,null,null,0,null,0,null,null,null,0,null,0]
[null,null,null,null,null,0,null,0,null,null,null,{"$f":"SUM(J125*K125)","v":0},null,0]

{"sheet":"17","index":17,"n_rows":125,"n_cols":15,"rows_kept":125,"cut":false,"hidden":false,"merged":[[4,1,5,1],[4,14,5,14],[0,13,0,14],[1,13,1,14]]}
[null,{"$f":"Ricapitolazione!D26","v":0},null,null,"Totale delle entrate",null,{"$f":"SUM(H7:H125)","v":0},"Litri 100%",null,null,null,null,null,"Numero di cliente"]
[null,null,null,null,"Totale delle uscite",null,{"$f":"SUM(N8:N125)","v":0},"Litri 100%",null,null,null,null,null,{"$f":"Ricapitolazione!H3","v":0}]
["Esercizio",{"$f":"Ricapitolazione!I6","v":0},null,null,"Saldo",null,{"$f":"SUM(G1-G2)","v":0},"Litri 100%"]
[]
[null,"In entrata: Produzione / fabbricazione\nIn uscita  : Nome e indirizzo dell'acquirente / utilizzazione\n                   per febbricazione / degustazione / regali",null,null,null,"Entrate",null,null,null,null,null,"Uscite",null,null,"Data della\ndichiarazione per l'imposizione"]
["Data",null,null,"Numero di\nbottiglie","Capacità","litri","% vol.","Litri 100 %",null,"Numero di\nbottiglie","Capacità","Litri","% vol.","Litri 100 %"]
[" ","Stock iniziale / riporto",null,null,null,{"$f":"SUM(D7*E7)","v":0},null,{"$f":"ROUND(F7*G7/100,2)","v":0}]
[null,null,null,null,null,{"$f":"SUM(D8*E8)","v":0},null,{"$f":"ROUND(F8*G8/100,2)","v":0},null,null,null,{"$f":"SUM(J8*K8)","v":0},null,{"$f":"ROUND(L8*M8/100,2)","v":0}]
[null,null,null,null,null,{"$f":"SUM(D9*E9)","v":0},null,{"$f":"ROUND(F9*G9/100,2)","v":0},null,null,null,{"$f":"SUM(J9*K9)","v":0},null,{"$f":"ROUND(L9*M9/100,2)","v":0}]
[null,null,null,null,null,0,null,0,null,null,null,0,null,0]
[null,null,null,null,null,0,null,0,null,null,null,0,null,0]
[null,null,null,null,null,0,null,0,null,null,null,0,null,0]
[null,null,null,null,null,0,null,0,null,null,null,0,null,0]
[null,null,null,null,null,0,null,0,null,null,null,0,null,0]
[null,null,null,null,null,0,null,0,null,null,null,0,null,0]
[null,null,null,null,null,0,null,0,null,null,null,0,null,0]
[null,null,null,null,null,0,null,0,null,null,null,0,null,0]
[null,null,null,null,null,0,null,0,null,null,null,0,null,0]
[null,null,null,null,null,0,null,0,null,null,null,0,null,0]
[null,null,null,null,null,0,null,0,null,null,null,0,null,0]
[null,null,null,null,null,0,null,0,null,null,null,0,null,0]
[null,null,null,null,null,0,null,0,null,null,null,0,null,0]
[null,null,null,null,null,0,null,0,null,null,null,0,null,0]
[null,null,null,null,null,0,null,0,null,null,null,0,null,0]
[null,null,null,null,null,0,null,0,null,null,null,0,null,0]
[null,null,null,null,null,0,null,0,null,null,null,0,null,0]
[null,null,null,null,null,0,null,0,null,null,null,0,null,0]
[null,null,null,null,null,0,null,0,null,null,null,0,null,0]
[null,null,null,null,null,0,null,0,null,null,null,0,null,0]
[null,null,null,null,null,0,null,0,null,null,null,0,null,0]
[null,null,null,null,null,0,null,0,null,null,null,0,null,0]
[null,null,null,null,null,0,null,0,null,null,null,0,null,0]
[null,null,null,null,null,0,null,0,null,null,null,0,null,0]
[null,null,null,null,null,0,null,0,null,null,null,0,null,0]
[null,null,null,null,null,0,null,0,null,null,null,0,null,0]
[null,null,null,null,null,0,null,0,null,null,null,0,null,0]
[null,null,null,null,null,0,null,0,null,null,null,0,null,0]
[null,null,null,null,null,0,null,0,null,null,null,0,null,0]
[null,null,null,null,null,0,null,0,null,null,null,0,null,0]
[null,null,null,null,null,0,null,0,null,null,null,0,null,0]
[null,null,null,null,null,0,null,0,null,null,null,0,null,0]
[null,null,null,null,null,0,null,0,null,null,null,0,null,0]
[null,null,null,null,null,0,null,0,null,null,null,0,null,0]
[null,null,null,null,null,0,null,0,null,null,null,0,null,0]
[null,null,null,null,null,0,null,0,null,null,null,0,null,0]
[null,null,null,null,null,0,null,0,null,null,null,0,null,0]
[null,null,null,null,null,0,null,0,null,null,null,0,null,0]
[null,null,null,null,null,0,null,0,null,null,null,0,null,0]
[null,null,null,null,null,0,null,0,null,null,null,0,null,0]
[null,null,null,null,null,0,null,0,null,null,null,0,null,0]
[null,null,null,null,null,0,null,0,null,null,null,0,null,0]
[null,null,null,null,null,0,null,0,null,null,null,0,null,0]
[null,null,null,null,null,0,null,0,null,null,null,0,null,0]
[null,null,null,null,null,0,null,0,null,null,null,0,null,0]
[null,null,null,null,null,0,null,0,null,null,null,0,null,0]
[null,null,null,null,null,0,null,0,null,null,null,0,null,0]
[null,null,null,null,null,0,null,0,null,null,null,0,null,0]
[null,null,null,null,null,0,null,0,null,null,null,0,null,0]
[null,null,null,null,null,0,null,0,null,null,null,0,null,0]
[null,null,null,null,null,0,null,0,null,null,null,0,null,0]
[null,null,null,null,null,0,null,0,null,null,null,0,null,0]
[null,null,null,null,null,0,null,0,null,null,null,0,null,0]
[null,null,null,null,null,0,null,0,null,null,null,0,null,0]
[null,null,null,null,null,0,null,0,null,null,null,0,null,0]
[null,null,null,null,null,0,null,0,null,null,null,0,null,0]
[null,null,null,null,null,0,null,0,null,null,null,0,null,0]
[null,null,null,null,null,0,null,0,null,null,null,0,null,0]
[null,null,null,null,null,0,null,0,null,null,null,0,null,0]
[null,null,null,null,null,0,null,0,null,null,null,0,null,0]
[null,null,null,null,null,0,null,0,null,null,null,0,null,0]
[null,null,null,null,null,0,null,0,null,null,null,0,null,0]
[null,null,null,null,null,0,null,0,null,null,null,0,null,0]
[null,null,null,null,null,{"$f":"SUM(D73*E73)","v":0},null,{"$f":"ROUND(F73*G73/100,2)","v":0},null,null,null,{"$f":"SUM(J73*K73)","v":0},null,{"$f":"ROUND(L73*M73/100,2)","v":0}]
[null,null,null,null,null,0,null,0,null,null,null,0,null,0]
[null,null,null,null,null,0,null,0,null,null,null,0,null,0]
[null,null,null,null,null,0,null,0,null,null,null,0,null,0]
[null,null,null,null,null,0,null,0,null,null,null,0,null,0]
[null,null,null,null,null,0,null,0,null,null,null,0,null,0]
[null,null,null,null,null,0,null,0,null,null,null,0,null,0]
[null,null,null,null,null,0,null,0,null,null,null,0,null,0]
[null,null,null,null,null,0,null,0,null,null,null,0,null,0]
[null,null,null,null,null,0,null,0,null,null,null,0,null,0]
[null,null,null,null,null,0,null,0,null,null,null,0,null,0]
[null,null,null,null,null,0,null,0,null,null,null,0,null,0]
[null,null,null,null,null,0,null,0,null,null,null,0,null,0]
[null,null,null,null,null,0,null,0,null,null,null,0,null,0]
[null,null,null,null,null,0,null,0,null,null,null,0,null,0]
[null,null,null,null,null,0,null,0,null,null,null,0,null,0]
[null,null,null,null,null,0,null,0,null,null,null,0,null,0]
[null,null,null,null,null,0,null,0,null,null,null,0,null,0]
[null,null,null,null,null,0,null,0,null,null,null,0,null,0]
[null,null,null,null,null,0,null,0,null,null,null,0,null,0]
[null,null,null,null,null,0,null,0,null,null,null,0,null,0]
[null,null,null,null,null,0,null,0,null,null,null,0,null,0]
[null,null,null,null,null,0,null,0,null,null,null,0,null,0]
[null,null,null,null,null,0,null,0,null,null,null,0,null,0]
[null,null,null,null,null,0,null,0,null,null,null,0,null,0]
[null,null,null,null,null,0,null,0,null,null,null,0,null,0]
[null,null,null,null,null,0,null,0,null,null,null,0,null,0]
[null,null,null,null,null,0,null,0,null,null,null,0,null,0]
[null,null,null,null,null,0,null,0,null,null,null,0,null,0]
[null,null,null,null,null,0,null,0,null,null,null,0,null,0]
[null,null,null,null,null,0,null,0,null,null,null,0,null,0]
[null,null,null,null,null,0,null,0,null,null,null,0,null,0]
[null,null,null,null,null,0,null,0,null,null,null,0,null,0]
[null,null,null,null,null,0,null,0,null,null,null,0,null,0]
[null,null,null,null,null,0,null,0,null,null,null,0,null,0]
[null,null,null,null,null,0,null,0,null,null,null,0,null,0]
[null,null,null,null,null,0,null,0,null,null,null,0,null,0]
[null,null,null,null,null,0,null,0,null,null,null,0,null,0]
[null,null,null,null,null,0,null,0,null,null,null,0,null,0]
[null,null,null,null,null,0,null,0,null,null,null,0,null,0]
[null,null,null,null,null,0,null,0,null,null,null,0,null,0]
[null,null,null,null,null,0,null,0,null,null,null,0,null,0]
[null,null,null,null,null,0,null,0,null,null,null,0,null,0]
[null,null,null,null,null,0,null,0,null,null,null,0,null,0]
[null,null,null,null,null,0,null,0,null,null,null,0,null,0]
[null,null,null,null,null,0,null,0,null,null,null,0,null,0]
[null,null,null,null,null,0,null,0,null,null,null,0,null,0]
[null,null,null,null,null,0,null,0,null,null,null,0,null,0]
[null,null,null,null,null,0,null,0,null,null,null,0,null,0]
[null,null,null,null,null,0,null,0,null,null,null,0,null,0]
[null,null,null,null,null,0,null,0,null,null,null,0,null,0]
[null,null,null,null,null,0,null,0,null,null,null,0,null,0]
[null,null,null,null,null,0,null,0,null,null,null,{"$f":"SUM(J125*K125)","v":0},null,0]

{"sheet":"18","index":18,"n_rows":125,"n_cols":15,"rows_kept":125,"cut":false,"hidden":false,"merged":[[4,1,5,1],[4,14,5,14],[0,13,0,14],[1,13,1,14]]}
[null,{"$f":"Ricapitolazione!D27","v":0},null,null,"Totale delle entrate",null,{"$f":"SUM(H7:H125)","v":0},"Litri 100%",null,null,null,null,null,"Numero di cliente"]
[null,null,null,null,"Totale delle uscite",null,{"$f":"SUM(N8:N125)","v":0},"Litri 100%",null,null,null,null,null,{"$f":"Ricapitolazione!H3","v":0}]
["Esercizio",{"$f":"Ricapitolazione!I6","v":0},null,null,"Saldo",null,{"$f":"SUM(G1-G2)","v":0},"Litri 100%"]
[]
[null,"In entrata: Produzione / fabbricazione\nIn uscita  : Nome e indirizzo dell'acquirente / utilizzazione\n                   per febbricazione / degustazione / regali",null,null,null,"Entrate",null,null,null,null,null,"Uscite",null,null,"Data della\ndichiarazione per l'imposizione"]
["Data",null,null,"Numero di\nbottiglie","Capacità","litri","% vol.","Litri 100 %",null,"Numero di\nbottiglie","Capacità","Litri","% vol.","Litri 100 %"]
[" ","Stock iniziale / riporto",null,null,null,{"$f":"SUM(D7*E7)","v":0},null,{"$f":"ROUND(F7*G7/100,2)","v":0}]
[null,null,null,null,null,{"$f":"SUM(D8*E8)","v":0},null,{"$f":"ROUND(F8*G8/100,2)","v":0},null,null,null,{"$f":"SUM(J8*K8)","v":0},null,{"$f":"ROUND(L8*M8/100,2)","v":0}]
[null,null,null,null,null,{"$f":"SUM(D9*E9)","v":0},null,{"$f":"ROUND(F9*G9/100,2)","v":0},null,null,null,{"$f":"SUM(J9*K9)","v":0},null,{"$f":"ROUND(L9*M9/100,2)","v":0}]
[null,null,null,null,null,0,null,0,null,null,null,0,null,0]
[null,null,null,null,null,0,null,0,null,null,null,0,null,0]
[null,null,null,null,null,0,null,0,null,null,null,0,null,0]
[null,null,null,null,null,0,null,0,null,null,null,0,null,0]
[null,null,null,null,null,0,null,0,null,null,null,0,null,0]
[null,null,null,null,null,0,null,0,null,null,null,0,null,0]
[null,null,null,null,null,0,null,0,null,null,null,0,null,0]
[null,null,null,null,null,0,null,0,null,null,null,0,null,0]
[null,null,null,null,null,0,null,0,null,null,null,0,null,0]
[null,null,null,null,null,0,null,0,null,null,null,0,null,0]
[null,null,null,null,null,0,null,0,null,null,null,0,null,0]
[null,null,null,null,null,0,null,0,null,null,null,0,null,0]
[null,null,null,null,null,0,null,0,null,null,null,0,null,0]
[null,null,null,null,null,0,null,0,null,null,null,0,null,0]
[null,null,null,null,null,0,null,0,null,null,null,0,null,0]
[null,null,null,null,null,0,null,0,null,null,null,0,null,0]
[null,null,null,null,null,0,null,0,null,null,null,0,null,0]
[null,null,null,null,null,0,null,0,null,null,null,0,null,0]
[null,null,null,null,null,0,null,0,null,null,null,0,null,0]
[null,null,null,null,null,0,null,0,null,null,null,0,null,0]
[null,null,null,null,null,0,null,0,null,null,null,0,null,0]
[null,null,null,null,null,0,null,0,null,null,null,0,null,0]
[null,null,null,null,null,0,null,0,null,null,null,0,null,0]
[null,null,null,null,null,0,null,0,null,null,null,0,null,0]
[null,null,null,null,null,0,null,0,null,null,null,0,null,0]
[null,null,null,null,null,0,null,0,null,null,null,0,null,0]
[null,null,null,null,null,0,null,0,null,null,null,0,null,0]
[null,null,null,null,null,0,null,0,null,null,null,0,null,0]
[null,null,null,null,null,0,null,0,null,null,null,0,null,0]
[null,null,null,null,null,0,null,0,null,null,null,0,null,0]
[null,null,null,null,null,0,null,0,null,null,null,0,null,0]
[null,null,null,null,null,0,null,0,null,null,null,0,null,0]
[null,null,null,null,null,0,null,0,null,null,null,0,null,0]
[null,null,null,null,null,0,null,0,null,null,null,0,null,0]
[null,null,null,null,null,0,null,0,null,null,null,0,null,0]
[null,null,null,null,null,0,null,0,null,null,null,0,null,0]
[null,null,null,null,null,0,null,0,null,null,null,0,null,0]
[null,null,null,null,null,0,null,0,null,null,null,0,null,0]
[null,null,null,null,null,0,null,0,null,null,null,0,null,0]
[null,null,null,null,null,0,null,0,null,null,null,0,null,0]
[null,null,null,null,null,0,null,0,null,null,null,0,null,0]
[null,null,null,null,null,0,null,0,null,null,null,0,null,0]
[null,null,null,null,null,0,null,0,null,null,null,0,null,0]
[null,null,null,null,null,0,null,0,null,null,null,0,null,0]
[null,null,null,null,null,0,null,0,null,null,null,0,null,0]
[null,null,null,null,null,0,null,0,null,null,null,0,null,0]
[null,null,null,null,null,0,null,0,null,null,null,0,null,0]
[null,null,null,null,null,0,null,0,null,null,null,0,null,0]
[null,null,null,null,null,0,null,0,null,null,null,0,null,0]
[null,null,null,null,null,0,null,0,null,null,null,0,null,0]
[null,null,null,null,null,0,null,0,null,null,null,0,null,0]
[null,null,null,null,null,0,null,0,null,null,null,0,null,0]
[null,null,null,null,null,0,null,0,null,null,null,0,null,0]
[null,null,null,null,null,0,null,0,null,null,null,0,null,0]
[null,null,null,null,null,0,null,0,null,null,null,0,null,0]
[null,null,null,null,null,0,null,0,null,null,null,0,null,0]
[null,null,null,null,null,0,null,0,null,null,null,0,null,0]
[null,null,null,null,null,0,null,0,null,null,null,0,null,0]
[null,null,null,null,null,0,null,0,null,null,null,0,null,0]
[null,null,null,null,null,0,null,0,null,null,null,0,null,0]
[null,null,null,null,null,0,null,0,null,null,null,0,null,0]
[null,null,null,null,null,0,null,0,null,null,null,0,null,0]
[null,null,null,null,null,0,null,0,null,null,null,0,null,0]
[null,null,null,null,null,{"$f":"SUM(D73*E73)","v":0},null,{"$f":"ROUND(F73*G73/100,2)","v":0},null,null,null,{"$f":"SUM(J73*K73)","v":0},null,{"$f":"ROUND(L73*M73/100,2)","v":0}]
[null,null,null,null,null,0,null,0,null,null,null,0,null,0]
[null,null,null,null,null,0,null,0,null,null,null,0,null,0]
[null,null,null,null,null,0,null,0,null,null,null,0,null,0]
[null,null,null,null,null,0,null,0,null,null,null,0,null,0]
[null,null,null,null,null,0,null,0,null,null,null,0,null,0]
[null,null,null,null,null,0,null,0,null,null,null,0,null,0]
[null,null,null,null,null,0,null,0,null,null,null,0,null,0]
[null,null,null,null,null,0,null,0,null,null,null,0,null,0]
[null,null,null,null,null,0,null,0,null,null,null,0,null,0]
[null,null,null,null,null,0,null,0,null,null,null,0,null,0]
[null,null,null,null,null,0,null,0,null,null,null,0,null,0]
[null,null,null,null,null,0,null,0,null,null,null,0,null,0]
[null,null,null,null,null,0,null,0,null,null,null,0,null,0]
[null,null,null,null,null,0,null,0,null,null,null,0,null,0]
[null,null,null,null,null,0,null,0,null,null,null,0,null,0]
[null,null,null,null,null,0,null,0,null,null,null,0,null,0]
[null,null,null,null,null,0,null,0,null,null,null,0,null,0]
[null,null,null,null,null,0,null,0,null,null,null,0,null,0]
[null,null,null,null,null,0,null,0,null,null,null,0,null,0]
[null,null,null,null,null,0,null,0,null,null,null,0,null,0]
[null,null,null,null,null,0,null,0,null,null,null,0,null,0]
[null,null,null,null,null,0,null,0,null,null,null,0,null,0]
[null,null,null,null,null,0,null,0,null,null,null,0,null,0]
[null,null,null,null,null,0,null,0,null,null,null,0,null,0]
[null,null,null,null,null,0,null,0,null,null,null,0,null,0]
[null,null,null,null,null,0,null,0,null,null,null,0,null,0]
[null,null,null,null,null,0,null,0,null,null,null,0,null,0]
[null,null,null,null,null,0,null,0,null,null,null,0,null,0]
[null,null,null,null,null,0,null,0,null,null,null,0,null,0]
[null,null,null,null,null,0,null,0,null,null,null,0,null,0]
[null,null,null,null,null,0,null,0,null,null,null,0,null,0]
[null,null,null,null,null,0,null,0,null,null,null,0,null,0]
[null,null,null,null,null,0,null,0,null,null,null,0,null,0]
[null,null,null,null,null,0,null,0,null,null,null,0,null,0]
[null,null,null,null,null,0,null,0,null,null,null,0,null,0]
[null,null,null,null,null,0,null,0,null,null,null,0,null,0]
[null,null,null,null,null,0,null,0,null,null,null,0,null,0]
[null,null,null,null,null,0,null,0,null,null,null,0,null,0]
[null,null,null,null,null,0,null,0,null,null,null,0,null,0]
[null,null,null,null,null,0,null,0,null,null,null,0,null,0]
[null,null,null,null,null,0,null,0,null,null,null,0,null,0]
[null,null,null,null,null,0,null,0,null,null,null,0,null,0]
[null,null,null,null,null,0,null,0,null,null,null,0,null,0]
[null,null,null,null,null,0,null,0,null,null,null,0,null,0]
[null,null,null,null,null,0,null,0,null,null,null,0,null,0]
[null,null,null,null,null,0,null,0,null,null,null,0,null,0]
[null,null,null,null,null,0,null,0,null,null,null,0,null,0]
[null,null,null,null,null,0,null,0,null,null,null,0,null,0]
[null,null,null,null,null,0,null,0,null,null,null,0,null,0]
[null,null,null,null,null,0,null,0,null,null,null,0,null,0]
[null,null,null,null,null,0,null,0,null,null,null,0,null,0]
[null,null,null,null,null,0,null,0,null,null,null,{"$f":"SUM(J125*K125)","v":0},null,0]